Body Name,Service Code,Expenditure Category,Payment Date,Transaction Number,Supplier,Net Amount
Barrow Borough Council,Local Restrictions Support Grant (Closed)�Addendum�,Wholesale And Retail Trade; Repair Of Motor Vehicles And Motorcycles,01-Feb-21,LRSG_1424,Game Retail Ltd,"2,000.00"
Barrow Borough Council,Local Restrictions Support Grant (Closed)�Addendum�,Wholesale And Retail Trade; Repair Of Motor Vehicles And Motorcycles,01-Feb-21,LRSG_1425,Business Grant Recipient,"1,334.00"
Barrow Borough Council,Local Restrictions Support Grant (Closed)�Addendum�,Wholesale And Retail Trade; Repair Of Motor Vehicles And Motorcycles,01-Feb-21,LRSG_1426,Business Grant Recipient,"1,334.00"
Barrow Borough Council,Local Restrictions Support Grant (Open)�,Accommodation And Food Service Activities,01-Feb-21,LRSG_1427,Business Grant Recipient,633.79
Barrow Borough Council,Closed Business Lockdown Payment,Accommodation And Food Service Activities,01-Feb-21,LRSG_1428,Business Grant Recipient,"4,000.00"
Barrow Borough Council,Closed Business Lockdown Payment,Accommodation And Food Service Activities,01-Feb-21,LRSG_1429,Business Grant Recipient,"4,000.00"
Barrow Borough Council,Closed Business Lockdown Payment,Accommodation And Food Service Activities,01-Feb-21,LRSG_1430, The Rams Head Pub,"4,000.00"
Barrow Borough Council,Closed Business Lockdown Payment,Accommodation And Food Service Activities,01-Feb-21,LRSG_1431,Britannia Inn (Church Street) Ltd ,"4,000.00"
Barrow Borough Council,Closed Business Lockdown Payment,Accommodation And Food Service Activities,01-Feb-21,LRSG_1432,The Harbour Inn Barrow Ltd,"6,000.00"
Barrow Borough Council,Closed Business Lockdown Payment,Accommodation And Food Service Activities,01-Feb-21,LRSG_1433,Business Grant Recipient,"4,000.00"
Barrow Borough Council,Closed Business Lockdown Payment,Accommodation And Food Service Activities,01-Feb-21,LRSG_1434,"Nautical Club,","4,000.00"
Barrow Borough Council,Closed Business Lockdown Payment,Accommodation And Food Service Activities,01-Feb-21,LRSG_1435,Harrbains Ltd,"6,000.00"
Barrow Borough Council,Closed Business Lockdown Payment,Accommodation And Food Service Activities,01-Feb-21,LRSG_1436,The Lounge Group Limited,"6,000.00"
Barrow Borough Council,Closed Business Lockdown Payment,Accommodation And Food Service Activities,01-Feb-21,LRSG_1437,Mk'S Liverpool Ltd,"4,000.00"
Barrow Borough Council,Closed Business Lockdown Payment,Accommodation And Food Service Activities,01-Feb-21,LRSG_1438,"Greengate Workingmen'S,","4,000.00"
Barrow Borough Council,Closed Business Lockdown Payment,Accommodation And Food Service Activities,01-Feb-21,LRSG_1439,Central Preston st working mens club,"4,000.00"
Barrow Borough Council,Closed Business Lockdown Payment,Accommodation And Food Service Activities,01-Feb-21,LRSG_1440,Business Grant Recipient,"4,000.00"
Barrow Borough Council,Closed Business Lockdown Payment,Accommodation And Food Service Activities,01-Feb-21,LRSG_1441,Business Grant Recipient,"4,000.00"
Barrow Borough Council,Closed Business Lockdown Payment,Accommodation And Food Service Activities,01-Feb-21,LRSG_1442,Hawthorn Leisure Honey Ltd,"6,000.00"
Barrow Borough Council,Closed Business Lockdown Payment,Accommodation And Food Service Activities,01-Feb-21,LRSG_1443,Barrow Labour Club,"4,000.00"
Barrow Borough Council,Closed Business Lockdown Payment,Accommodation And Food Service Activities,01-Feb-21,LRSG_1444,"British Legion Club,","4,000.00"
Barrow Borough Council,Closed Business Lockdown Payment,Accommodation And Food Service Activities,01-Feb-21,LRSG_1445,Business Grant Recipient,"6,000.00"
Barrow Borough Council,Closed Business Lockdown Payment,Accommodation And Food Service Activities,01-Feb-21,LRSG_1446,Business Grant Recipient,"4,000.00"
Barrow Borough Council,Closed Business Lockdown Payment,Accommodation And Food Service Activities,01-Feb-21,LRSG_1447,Amber Taverns Limited,"6,000.00"
Barrow Borough Council,Closed Business Lockdown Payment,Accommodation And Food Service Activities,01-Feb-21,LRSG_1448,Manhattans Barrow Limited,"6,000.00"
Barrow Borough Council,Closed Business Lockdown Payment,Accommodation And Food Service Activities,01-Feb-21,LRSG_1449,Business Grant Recipient,"4,000.00"
Barrow Borough Council,Closed Business Lockdown Payment,Accommodation And Food Service Activities,01-Feb-21,LRSG_1450,Lemmy Barrow Ltd,"6,000.00"
Barrow Borough Council,Closed Business Lockdown Payment,Accommodation And Food Service Activities,01-Feb-21,LRSG_1451,Business Grant Recipient,"4,000.00"
Barrow Borough Council,Local Restrictions Support Grant (Closed)�Addendum�,"Arts, Entertainment And Recreation",02-Feb-21,LRSG_1452,Signal Films,"1,334.00"
Barrow Borough Council,Local Restrictions Support Grant (Closed)�Addendum�,"Arts, Entertainment And Recreation",02-Feb-21,LRSG_1453,Signal Films,"1,334.00"
Barrow Borough Council,Local Restrictions Support Grant (Closed)�Addendum�,Wholesale And Retail Trade; Repair Of Motor Vehicles And Motorcycles,02-Feb-21,LRSG_1454,Business Grant Recipient,"1,334.00"
Barrow Borough Council,Local Restrictions Support Grant (Closed)�Addendum�,Accommodation And Food Service Activities,02-Feb-21,LRSG_1455,Specpride Limited,"1,334.00"
Barrow Borough Council,Local Restrictions Support Grant (Closed)�Addendum�,Wholesale And Retail Trade; Repair Of Motor Vehicles And Motorcycles,02-Feb-21,LRSG_1456,Business Grant Recipient,"1,334.00"
Barrow Borough Council,Local Restrictions Support Grant (Open)�,Accommodation And Food Service Activities,02-Feb-21,LRSG_1457,Business Grant Recipient,633.79
Barrow Borough Council,Local Restrictions Support Grant (Open)�,Accommodation And Food Service Activities,02-Feb-21,LRSG_1458,Specpride Limited,633.79
Barrow Borough Council,Closed Business Lockdown Payment,Accommodation And Food Service Activities,02-Feb-21,LRSG_1459,Business Grant Recipient,"4,000.00"
Barrow Borough Council,Closed Business Lockdown Payment,Accommodation And Food Service Activities,02-Feb-21,LRSG_1460,Business Grant Recipient,"4,000.00"
Barrow Borough Council,Closed Business Lockdown Payment,Accommodation And Food Service Activities,02-Feb-21,LRSG_1461,Barrow Arms ,"6,000.00"
Barrow Borough Council,Closed Business Lockdown Payment,Accommodation And Food Service Activities,02-Feb-21,LRSG_1462,Roa Island Boating Club Ltd,"4,000.00"
Barrow Borough Council,Closed Business Lockdown Payment,"Arts, Entertainment And Recreation",02-Feb-21,LRSG_1463,Duddon Sports & Social Club,"4,000.00"
Barrow Borough Council,Closed Business Lockdown Payment,Wholesale And Retail Trade; Repair Of Motor Vehicles And Motorcycles,02-Feb-21,LRSG_1464,maiquez Limited,"6,000.00"
Barrow Borough Council,Closed Business Lockdown Payment,Accommodation And Food Service Activities,02-Feb-21,LRSG_1465,Diamond (Barrow) Ltd,"4,000.00"
Barrow Borough Council,Closed Business Lockdown Payment,Accommodation And Food Service Activities,02-Feb-21,LRSG_1466, Barrow Fiesta ,"6,000.00"
Barrow Borough Council,Closed Business Lockdown Payment,"Arts, Entertainment And Recreation",02-Feb-21,LRSG_1467,Business Grant Recipient,"4,000.00"
Barrow Borough Council,Local Restrictions Support Grant (Closed) Addendum: Tier 4,"Arts, Entertainment And Recreation",16-Feb-21,LRSG_1468,Business Grant Recipient,-238.21
Barrow Borough Council,Local Restrictions Support Grant (Closed) Addendum: 5 January onwards,"Arts, Entertainment And Recreation",16-Feb-21,LRSG_1469,Business Grant Recipient,"-2,001.00"
Barrow Borough Council,Closed Business Lockdown Payment,Accommodation And Food Service Activities,02-Feb-21,LRSG_1470,Business Grant Recipient,"4,000.00"
Barrow Borough Council,Closed Business Lockdown Payment,"Arts, Entertainment And Recreation",02-Feb-21,LRSG_1471,Business Grant Recipient,"4,000.00"
Barrow Borough Council,Closed Business Lockdown Payment,Accommodation And Food Service Activities,02-Feb-21,LRSG_1472,Business Grant Recipient,"6,000.00"
Barrow Borough Council,Closed Business Lockdown Payment,"Arts, Entertainment And Recreation",02-Feb-21,LRSG_1473,Business Grant Recipient,"4,000.00"
Barrow Borough Council,Closed Business Lockdown Payment,Accommodation And Food Service Activities,02-Feb-21,LRSG_1474,Lara Gibbons Ltd,"4,000.00"
Barrow Borough Council,Closed Business Lockdown Payment,Accommodation And Food Service Activities,02-Feb-21,LRSG_1475,Abbey Mill Coffee Shop,"4,000.00"
Barrow Borough Council,Closed Business Lockdown Payment,Accommodation And Food Service Activities,02-Feb-21,LRSG_1476,Business Grant Recipient,"4,000.00"
Barrow Borough Council,Closed Business Lockdown Payment,"Arts, Entertainment And Recreation",02-Feb-21,LRSG_1477,Furness Golf Club,"6,000.00"
Barrow Borough Council,Closed Business Lockdown Payment,"Arts, Entertainment And Recreation",02-Feb-21,LRSG_1478,The Dunnerholme Golf Club,"4,000.00"
Barrow Borough Council,Closed Business Lockdown Payment,"Arts, Entertainment And Recreation",02-Feb-21,LRSG_1479,Coop sports and social Club,"4,000.00"
Barrow Borough Council,Closed Business Lockdown Payment,Accommodation And Food Service Activities,02-Feb-21,LRSG_1480,Business Grant Recipient,"4,000.00"
Barrow Borough Council,Closed Business Lockdown Payment,"Arts, Entertainment And Recreation",02-Feb-21,LRSG_1481,Furness Rugby Union Football Club,"4,000.00"
Barrow Borough Council,Closed Business Lockdown Payment,Accommodation And Food Service Activities,02-Feb-21,LRSG_1482,Business Grant Recipient,"6,000.00"
Barrow Borough Council,Closed Business Lockdown Payment,"Arts, Entertainment And Recreation",02-Feb-21,LRSG_1483,LQ (Cumbria) Ltd,"6,000.00"
Barrow Borough Council,Closed Business Lockdown Payment,Accommodation And Food Service Activities,02-Feb-21,LRSG_1484,Baam Siam Barrow Limited,"4,000.00"
Barrow Borough Council,Closed Business Lockdown Payment,Accommodation And Food Service Activities,02-Feb-21,LRSG_1485,Abbey House Hotel (Cumbria) Ltd,"9,000.00"
Barrow Borough Council,Local Restrictions Support Grant (Closed)�,Accommodation And Food Service Activities,02-Feb-21,LRSG_1486,Abbey House Hotel (Cumbria) Ltd,"-1,381.64"
Barrow Borough Council,Local Restrictions Support Grant (Closed) Addendum: Tier 4,Accommodation And Food Service Activities,02-Feb-21,LRSG_1487,Abbey House Hotel (Cumbria) Ltd,-238.21
Barrow Borough Council,Local Restrictions Support Grant (Closed) Addendum: 5 January onwards,Accommodation And Food Service Activities,02-Feb-21,LRSG_1488,Abbey House Hotel (Cumbria) Ltd,"-2,001.00"
Barrow Borough Council,Closed Business Lockdown Payment,Accommodation And Food Service Activities,02-Feb-21,LRSG_1489,Business Grant Recipient,"4,000.00"
Barrow Borough Council,Closed Business Lockdown Payment,Accommodation And Food Service Activities,02-Feb-21,LRSG_1490,Hoperiver Limited,"6,000.00"
Barrow Borough Council,Closed Business Lockdown Payment,Accommodation And Food Service Activities,02-Feb-21,LRSG_1491,Business Grant Recipient,"4,000.00"
Barrow Borough Council,Closed Business Lockdown Payment,Accommodation And Food Service Activities,02-Feb-21,LRSG_1492,Business Grant Recipient,"4,000.00"
Barrow Borough Council,Closed Business Lockdown Payment,Accommodation And Food Service Activities,02-Feb-21,LRSG_1493,Business Grant Recipient,"6,000.00"
Barrow Borough Council,Closed Business Lockdown Payment,Accommodation And Food Service Activities,02-Feb-21,LRSG_1494,Business Grant Recipient,"4,000.00"
Barrow Borough Council,Closed Business Lockdown Payment,"Arts, Entertainment And Recreation",02-Feb-21,LRSG_1495,West Shore Bowling Club,"4,000.00"
Barrow Borough Council,Closed Business Lockdown Payment,"Arts, Entertainment And Recreation",02-Feb-21,LRSG_1496,Askam United Football Club,"4,000.00"
Barrow Borough Council,Closed Business Lockdown Payment,"Arts, Entertainment And Recreation",02-Feb-21,LRSG_1497,Furness Gymnastics Club,"6,000.00"
Barrow Borough Council,Closed Business Lockdown Payment,"Arts, Entertainment And Recreation",02-Feb-21,LRSG_1498,Little Subs Barrow Ltd,"6,000.00"
Barrow Borough Council,Closed Business Lockdown Payment,Accommodation And Food Service Activities,02-Feb-21,LRSG_1499,Dalton Cricket Club,"4,000.00"
Barrow Borough Council,Closed Business Lockdown Payment,"Arts, Entertainment And Recreation",02-Feb-21,LRSG_1500,Barrow Cricket Club ,"4,000.00"
Barrow Borough Council,Closed Business Lockdown Payment,Accommodation And Food Service Activities,02-Feb-21,LRSG_1501,Business Grant Recipient,"9,000.00"
Barrow Borough Council,Closed Business Lockdown Payment,Accommodation And Food Service Activities,02-Feb-21,LRSG_1502,Maisonette at the Brown Cow,"4,000.00"
Barrow Borough Council,Closed Business Lockdown Payment,Accommodation And Food Service Activities,02-Feb-21,LRSG_1503,Business Grant Recipient,"4,000.00"
Barrow Borough Council,Closed Business Lockdown Payment,Accommodation And Food Service Activities,02-Feb-21,LRSG_1504,Business Grant Recipient,"4,000.00"
Barrow Borough Council,Closed Business Lockdown Payment,Accommodation And Food Service Activities,02-Feb-21,LRSG_1505,Business Grant Recipient,"4,000.00"
Barrow Borough Council,Closed Business Lockdown Payment,Accommodation And Food Service Activities,02-Feb-21,LRSG_1506,Business Grant Recipient,"4,000.00"
Barrow Borough Council,Closed Business Lockdown Payment,Accommodation And Food Service Activities,02-Feb-21,LRSG_1507,Royal Naval Association Club,"4,000.00"
Barrow Borough Council,Closed Business Lockdown Payment,Accommodation And Food Service Activities,02-Feb-21,LRSG_1508,Business Grant Recipient,"6,000.00"
Barrow Borough Council,Closed Business Lockdown Payment,Accommodation And Food Service Activities,02-Feb-21,LRSG_1509,Vickerstown cricket and tennis club,"4,000.00"
Barrow Borough Council,Closed Business Lockdown Payment,"Arts, Entertainment And Recreation",02-Feb-21,LRSG_1510,Dalton Leisure Services Ltd,"9,000.00"
Barrow Borough Council,Closed Business Lockdown Payment,Accommodation And Food Service Activities,02-Feb-21,LRSG_1511,Business Grant Recipient,"4,000.00"
Barrow Borough Council,Closed Business Lockdown Payment,Accommodation And Food Service Activities,02-Feb-21,LRSG_1512,David Clark Properties ,"6,000.00"
Barrow Borough Council,Closed Business Lockdown Payment,Accommodation And Food Service Activities,02-Feb-21,LRSG_1513,Kill One Club,"4,000.00"
Barrow Borough Council,Closed Business Lockdown Payment,"Arts, Entertainment And Recreation",02-Feb-21,LRSG_1514,Cumbria Pole Art Ltd,"4,000.00"
Barrow Borough Council,Closed Business Lockdown Payment,"Arts, Entertainment And Recreation",02-Feb-21,LRSG_1515,Hoops Basketball Centre,"6,000.00"
Barrow Borough Council,Closed Business Lockdown Payment,"Arts, Entertainment And Recreation",02-Feb-21,LRSG_1516,Infinity Gymnastics,"4,000.00"
Barrow Borough Council,Closed Business Lockdown Payment,Accommodation And Food Service Activities,02-Feb-21,LRSG_1517,Ambrose Hotel,"6,000.00"
Barrow Borough Council,Closed Business Lockdown Payment,"Arts, Entertainment And Recreation",02-Feb-21,LRSG_1518,Business Grant Recipient,"4,000.00"
Barrow Borough Council,Closed Business Lockdown Payment,Accommodation And Food Service Activities,02-Feb-21,LRSG_1519,Business Grant Recipient,"4,000.00"
Barrow Borough Council,Closed Business Lockdown Payment,Accommodation And Food Service Activities,02-Feb-21,LRSG_1520,Business Grant Recipient,"4,000.00"
Barrow Borough Council,Closed Business Lockdown Payment,Accommodation And Food Service Activities,02-Feb-21,LRSG_1521,GPW Leisure,"4,000.00"
Barrow Borough Council,Closed Business Lockdown Payment,Accommodation And Food Service Activities,02-Feb-21,LRSG_1522,Business Grant Recipient,"4,000.00"
Barrow Borough Council,Closed Business Lockdown Payment,Accommodation And Food Service Activities,02-Feb-21,LRSG_1523,CHAD in Askam Limited,"4,000.00"
Barrow Borough Council,Closed Business Lockdown Payment,"Arts, Entertainment And Recreation",02-Feb-21,LRSG_1524,Barrow Underground Music Society,"4,000.00"
Barrow Borough Council,Closed Business Lockdown Payment,Accommodation And Food Service Activities,02-Feb-21,LRSG_1525,Walney Island South End Caravan Site ,"9,000.00"
Barrow Borough Council,Closed Business Lockdown Payment,Accommodation And Food Service Activities,02-Feb-21,LRSG_1526,Business Grant Recipient,"4,000.00"
Barrow Borough Council,Closed Business Lockdown Payment,Accommodation And Food Service Activities,02-Feb-21,LRSG_1527,Business Grant Recipient,"6,000.00"
Barrow Borough Council,Closed Business Lockdown Payment,Wholesale And Retail Trade; Repair Of Motor Vehicles And Motorcycles,02-Feb-21,LRSG_1528,Gold Planner Ltd,"6,000.00"
Barrow Borough Council,Closed Business Lockdown Payment,Accommodation And Food Service Activities,02-Feb-21,LRSG_1529,Business Grant Recipient,"9,000.00"
Barrow Borough Council,Closed Business Lockdown Payment,Accommodation And Food Service Activities,02-Feb-21,LRSG_1530,Hawcoat Park Ltd,"6,000.00"
Barrow Borough Council,Closed Business Lockdown Payment,Accommodation And Food Service Activities,02-Feb-21,LRSG_1531,Business Grant Recipient,"4,000.00"
Barrow Borough Council,Closed Business Lockdown Payment,Accommodation And Food Service Activities,02-Feb-21,LRSG_1532,Business Grant Recipient,"4,000.00"
Barrow Borough Council,Closed Business Lockdown Payment,Accommodation And Food Service Activities,02-Feb-21,LRSG_1533,Lucidity Group/Townhouse,"6,000.00"
Barrow Borough Council,Closed Business Lockdown Payment,Accommodation And Food Service Activities,02-Feb-21,LRSG_1534,Business Grant Recipient,"4,000.00"
Barrow Borough Council,Closed Business Lockdown Payment,Accommodation And Food Service Activities,02-Feb-21,LRSG_1535,Sweet Pepper Caf� Ltd,"4,000.00"
Barrow Borough Council,Closed Business Lockdown Payment,Accommodation And Food Service Activities,02-Feb-21,LRSG_1536,Business Grant Recipient,"4,000.00"
Barrow Borough Council,Closed Business Lockdown Payment,Accommodation And Food Service Activities,02-Feb-21,LRSG_1537,Eden Retreat Ltd,"4,000.00"
Barrow Borough Council,Closed Business Lockdown Payment,Accommodation And Food Service Activities,02-Feb-21,LRSG_1538,Business Grant Recipient,"4,000.00"
Barrow Borough Council,Closed Business Lockdown Payment,Accommodation And Food Service Activities,02-Feb-21,LRSG_1539,Diggles Ltd,"6,000.00"
Barrow Borough Council,Closed Business Lockdown Payment,Accommodation And Food Service Activities,02-Feb-21,LRSG_1540,RHBB Ltd T/A The Royal Hotel ,"6,000.00"
Barrow Borough Council,Closed Business Lockdown Payment,Accommodation And Food Service Activities,02-Feb-21,LRSG_1541,Business Grant Recipient,"4,000.00"
Barrow Borough Council,Closed Business Lockdown Payment,Accommodation And Food Service Activities,02-Feb-21,LRSG_1542,Marilyns (Barrow) Limited,"6,000.00"
Barrow Borough Council,Closed Business Lockdown Payment,"Arts, Entertainment And Recreation",02-Feb-21,LRSG_1543,Elite Dance & Fitness Ltd,"4,000.00"
Barrow Borough Council,Closed Business Lockdown Payment,Accommodation And Food Service Activities,02-Feb-21,LRSG_1544,Business Grant Recipient,"4,000.00"
Barrow Borough Council,Closed Business Lockdown Payment,Accommodation And Food Service Activities,02-Feb-21,LRSG_1545,Bar 20 Dalton Limited,"4,000.00"
Barrow Borough Council,Closed Business Lockdown Payment,Accommodation And Food Service Activities,02-Feb-21,LRSG_1546,Izgara Barrow Limited,"4,000.00"
Barrow Borough Council,Closed Business Lockdown Payment,"Arts, Entertainment And Recreation",02-Feb-21,LRSG_1547,Crossfit Barrow,"4,000.00"
Barrow Borough Council,Closed Business Lockdown Payment,Accommodation And Food Service Activities,02-Feb-21,LRSG_1548,Business Grant Recipient,"4,000.00"
Barrow Borough Council,Closed Business Lockdown Payment,Accommodation And Food Service Activities,02-Feb-21,LRSG_1549,BLUEBIRD HOTELS LIMITED,"6,000.00"
Barrow Borough Council,Closed Business Lockdown Payment,Accommodation And Food Service Activities,02-Feb-21,LRSG_1550,Business Grant Recipient,"4,000.00"
Barrow Borough Council,Closed Business Lockdown Payment,Accommodation And Food Service Activities,02-Feb-21,LRSG_1551,Beluto Properties,"6,000.00"
Barrow Borough Council,Closed Business Lockdown Payment,Accommodation And Food Service Activities,02-Feb-21,LRSG_1552,Beluto Properties,"4,000.00"
Barrow Borough Council,Closed Business Lockdown Payment,Accommodation And Food Service Activities,02-Feb-21,LRSG_1553,Beluto Properties,"6,000.00"
Barrow Borough Council,Closed Business Lockdown Payment,Accommodation And Food Service Activities,02-Feb-21,LRSG_1554,Trident Hotels (South Lakes) 1 Limited T/A Holiday Inn Express Barrow,"9,000.00"
Barrow Borough Council,Closed Business Lockdown Payment,Accommodation And Food Service Activities,02-Feb-21,LRSG_1555,Business Grant Recipient,"4,000.00"
Barrow Borough Council,Closed Business Lockdown Payment,Accommodation And Food Service Activities,02-Feb-21,LRSG_1556,Business Grant Recipient,"4,000.00"
Barrow Borough Council,Local Restrictions Support Grant (Closed) Addendum: Tier 4,Wholesale And Retail Trade; Repair Of Motor Vehicles And Motorcycles,02-Feb-21,LRSG_1557,Business Grant Recipient,238.21
Barrow Borough Council,Local Restrictions Support Grant (Closed) Addendum: 5 January onwards,Wholesale And Retail Trade; Repair Of Motor Vehicles And Motorcycles,02-Feb-21,LRSG_1558,Business Grant Recipient,"2,001.00"
Barrow Borough Council,Local Restrictions Support Grant (Closed) Addendum: Tier 4,Wholesale And Retail Trade; Repair Of Motor Vehicles And Motorcycles,02-Feb-21,LRSG_1559,Business Grant Recipient,238.21
Barrow Borough Council,Local Restrictions Support Grant (Closed) Addendum: 5 January onwards,Wholesale And Retail Trade; Repair Of Motor Vehicles And Motorcycles,02-Feb-21,LRSG_1560,Business Grant Recipient,"2,001.00"
Barrow Borough Council,Local Restrictions Support Grant (Closed) Addendum: Tier 4,Wholesale And Retail Trade; Repair Of Motor Vehicles And Motorcycles,02-Feb-21,LRSG_1561,Business Grant Recipient,238.21
Barrow Borough Council,Local Restrictions Support Grant (Closed) Addendum: 5 January onwards,Wholesale And Retail Trade; Repair Of Motor Vehicles And Motorcycles,02-Feb-21,LRSG_1562,Business Grant Recipient,"2,001.00"
Barrow Borough Council,Local Restrictions Support Grant (Closed) Addendum: Tier 4,Accommodation And Food Service Activities,02-Feb-21,LRSG_1563,Business Grant Recipient,238.21
Barrow Borough Council,Local Restrictions Support Grant (Closed) Addendum: 5 January onwards,Accommodation And Food Service Activities,02-Feb-21,LRSG_1564,Business Grant Recipient,"2,001.00"
Barrow Borough Council,Local Restrictions Support Grant (Closed)�Addendum�,Accommodation And Food Service Activities,03-Feb-21,LRSG_1565,The Ninetailed Fox Cafe,"1,334.00"
Barrow Borough Council,Local Restrictions Support Grant (Closed)�Addendum�,Wholesale And Retail Trade; Repair Of Motor Vehicles And Motorcycles,03-Feb-21,LRSG_1566,Astra Print,"1,334.00"
Barrow Borough Council,Local Restrictions Support Grant (Closed)�Addendum�,Wholesale And Retail Trade; Repair Of Motor Vehicles And Motorcycles,03-Feb-21,LRSG_1567,D Stoker Group Ltd,"3,000.00"
Barrow Borough Council,Local Restrictions Support Grant (Closed)�Addendum�,Accommodation And Food Service Activities,03-Feb-21,LRSG_1568,The Sun Inn,"3,000.00"
Barrow Borough Council,Local Restrictions Support Grant (Closed)�Addendum�,Accommodation And Food Service Activities,03-Feb-21,LRSG_1569,Business Grant Recipient,"1,334.00"
Barrow Borough Council,Local Restrictions Support Grant (Closed)�Addendum�,Wholesale And Retail Trade; Repair Of Motor Vehicles And Motorcycles,03-Feb-21,LRSG_1570,Business Grant Recipient,"1,334.00"
Barrow Borough Council,Local Restrictions Support Grant (Open)�,"Arts, Entertainment And Recreation",03-Feb-21,LRSG_1571,Graves (Cumberland) Ltd,"1,425.00"
Barrow Borough Council,Local Restrictions Support Grant (Open)�,Accommodation And Food Service Activities,03-Feb-21,LRSG_1572,The Sun Inn,"1,425.00"
Barrow Borough Council,Local Restrictions Support Grant (Open)�,"Arts, Entertainment And Recreation",03-Feb-21,LRSG_1573,Majestic Bingo Limited,"1,425.00"
Barrow Borough Council,Local Restrictions Support Grant (Closed) Addendum: Tier 4,Wholesale And Retail Trade; Repair Of Motor Vehicles And Motorcycles,03-Feb-21,LRSG_1574,Mobility Solutions Barrow Ltd,238.21
Barrow Borough Council,Local Restrictions Support Grant (Closed) Addendum: 5 January onwards,Wholesale And Retail Trade; Repair Of Motor Vehicles And Motorcycles,03-Feb-21,LRSG_1575,Mobility Solutions Barrow Ltd,"2,001.00"
Barrow Borough Council,Local Restrictions Support Grant (Closed) Addendum: Tier 4,Wholesale And Retail Trade; Repair Of Motor Vehicles And Motorcycles,03-Feb-21,LRSG_1576,Business Grant Recipient,238.21
Barrow Borough Council,Local Restrictions Support Grant (Closed) Addendum: 5 January onwards,Wholesale And Retail Trade; Repair Of Motor Vehicles And Motorcycles,03-Feb-21,LRSG_1577,Business Grant Recipient,"2,001.00"
Barrow Borough Council,Local Restrictions Support Grant (Closed) Addendum: Tier 4,Accommodation And Food Service Activities,03-Feb-21,LRSG_1578,Specpride Limited,238.21
Barrow Borough Council,Local Restrictions Support Grant (Closed) Addendum: 5 January onwards,Accommodation And Food Service Activities,03-Feb-21,LRSG_1579,Specpride Limited,"2,001.00"
Barrow Borough Council,Local Restrictions Support Grant (Closed) Addendum: Tier 4,Wholesale And Retail Trade; Repair Of Motor Vehicles And Motorcycles,03-Feb-21,LRSG_1580,Business Grant Recipient,238.21
Barrow Borough Council,Local Restrictions Support Grant (Closed) Addendum: 5 January onwards,Wholesale And Retail Trade; Repair Of Motor Vehicles And Motorcycles,03-Feb-21,LRSG_1581,Business Grant Recipient,"2,001.00"
Barrow Borough Council,Local Restrictions Support Grant (Closed)�Addendum�,Wholesale And Retail Trade; Repair Of Motor Vehicles And Motorcycles,04-Feb-21,LRSG_1582, Head Office Furness,"1,334.00"
Barrow Borough Council,Local Restrictions Support Grant (Closed)�Addendum�,Accommodation And Food Service Activities,04-Feb-21,LRSG_1583,Max Spielmann Ltd,"2,000.00"
Barrow Borough Council,Closed Business Lockdown Payment,Accommodation And Food Service Activities,04-Feb-21,LRSG_1584,The Barrow Rugby Football Club Ltd,"4,000.00"
Barrow Borough Council,Closed Business Lockdown Payment,Wholesale And Retail Trade; Repair Of Motor Vehicles And Motorcycles,04-Feb-21,LRSG_1585,Mr Mister Ltd,"4,000.00"
Barrow Borough Council,Closed Business Lockdown Payment,Wholesale And Retail Trade; Repair Of Motor Vehicles And Motorcycles,04-Feb-21,LRSG_1586,Cumbria Embroidery & Print ,"4,000.00"
Barrow Borough Council,Local Restrictions Support Grant (Closed) Addendum: Tier 4,Wholesale And Retail Trade; Repair Of Motor Vehicles And Motorcycles,04-Feb-21,LRSG_1587,Cumbria Embroidery & Print ,-238.21
Barrow Borough Council,Local Restrictions Support Grant (Closed) Addendum: 5 January onwards,Wholesale And Retail Trade; Repair Of Motor Vehicles And Motorcycles,04-Feb-21,LRSG_1588,Cumbria Embroidery & Print ,"-2,001.00"
Barrow Borough Council,Closed Business Lockdown Payment,Wholesale And Retail Trade; Repair Of Motor Vehicles And Motorcycles,04-Feb-21,LRSG_1589,Business Grant Recipient,"4,000.00"
Barrow Borough Council,Closed Business Lockdown Payment,"Arts, Entertainment And Recreation",04-Feb-21,LRSG_1590,SW Lakes District Scouts,"4,000.00"
Barrow Borough Council,Closed Business Lockdown Payment,Wholesale And Retail Trade; Repair Of Motor Vehicles And Motorcycles,04-Feb-21,LRSG_1591,Autoimage Cars LTD,"4,000.00"
Barrow Borough Council,Closed Business Lockdown Payment,Wholesale And Retail Trade; Repair Of Motor Vehicles And Motorcycles,04-Feb-21,LRSG_1592,Kutz Barrow,"4,000.00"
Barrow Borough Council,Closed Business Lockdown Payment,Wholesale And Retail Trade; Repair Of Motor Vehicles And Motorcycles,04-Feb-21,LRSG_1593,Business Grant Recipient,"4,000.00"
Barrow Borough Council,Closed Business Lockdown Payment,Wholesale And Retail Trade; Repair Of Motor Vehicles And Motorcycles,04-Feb-21,LRSG_1594,Business Grant Recipient,"4,000.00"
Barrow Borough Council,Closed Business Lockdown Payment,Wholesale And Retail Trade; Repair Of Motor Vehicles And Motorcycles,04-Feb-21,LRSG_1595,Business Grant Recipient,"4,000.00"
Barrow Borough Council,Closed Business Lockdown Payment,Wholesale And Retail Trade; Repair Of Motor Vehicles And Motorcycles,04-Feb-21,LRSG_1596,Abbey Rd car sale ltd,"4,000.00"
Barrow Borough Council,Closed Business Lockdown Payment,Wholesale And Retail Trade; Repair Of Motor Vehicles And Motorcycles,04-Feb-21,LRSG_1597,HALO ENTERPRISES LIMITED,"4,000.00"
Barrow Borough Council,Closed Business Lockdown Payment,Wholesale And Retail Trade; Repair Of Motor Vehicles And Motorcycles,04-Feb-21,LRSG_1598,Cutting Edge Dalton Ltd,"4,000.00"
Barrow Borough Council,Closed Business Lockdown Payment,Wholesale And Retail Trade; Repair Of Motor Vehicles And Motorcycles,04-Feb-21,LRSG_1599,Business Grant Recipient,"4,000.00"
Barrow Borough Council,Closed Business Lockdown Payment,Wholesale And Retail Trade; Repair Of Motor Vehicles And Motorcycles,04-Feb-21,LRSG_1600,Business Grant Recipient,"4,000.00"
Barrow Borough Council,Closed Business Lockdown Payment,Wholesale And Retail Trade; Repair Of Motor Vehicles And Motorcycles,04-Feb-21,LRSG_1601, Radiance Beauty,"4,000.00"
Barrow Borough Council,Closed Business Lockdown Payment,Wholesale And Retail Trade; Repair Of Motor Vehicles And Motorcycles,04-Feb-21,LRSG_1602, So Silver,"4,000.00"
Barrow Borough Council,Closed Business Lockdown Payment,Wholesale And Retail Trade; Repair Of Motor Vehicles And Motorcycles,04-Feb-21,LRSG_1603,Lads and Dads Clothing Ltd,"4,000.00"
Barrow Borough Council,Closed Business Lockdown Payment,Wholesale And Retail Trade; Repair Of Motor Vehicles And Motorcycles,04-Feb-21,LRSG_1604,"RWE Tanning Ltd, T/A The Sun Shack","4,000.00"
Barrow Borough Council,Closed Business Lockdown Payment,Wholesale And Retail Trade; Repair Of Motor Vehicles And Motorcycles,04-Feb-21,LRSG_1605,Business Grant Recipient,"4,000.00"
Barrow Borough Council,Closed Business Lockdown Payment,Wholesale And Retail Trade; Repair Of Motor Vehicles And Motorcycles,04-Feb-21,LRSG_1606,Business Grant Recipient,"4,000.00"
Barrow Borough Council,Closed Business Lockdown Payment,Wholesale And Retail Trade; Repair Of Motor Vehicles And Motorcycles,04-Feb-21,LRSG_1607,Maiquez Limited,"6,000.00"
Barrow Borough Council,Closed Business Lockdown Payment,Wholesale And Retail Trade; Repair Of Motor Vehicles And Motorcycles,04-Feb-21,LRSG_1608,Business Grant Recipient,"4,000.00"
Barrow Borough Council,Closed Business Lockdown Payment,Wholesale And Retail Trade; Repair Of Motor Vehicles And Motorcycles,04-Feb-21,LRSG_1609,Efflorescence Ltd,"4,000.00"
Barrow Borough Council,Closed Business Lockdown Payment,Wholesale And Retail Trade; Repair Of Motor Vehicles And Motorcycles,04-Feb-21,LRSG_1610,Business Grant Recipient,"4,000.00"
Barrow Borough Council,Closed Business Lockdown Payment,Wholesale And Retail Trade; Repair Of Motor Vehicles And Motorcycles,04-Feb-21,LRSG_1611,Business Grant Recipient,"4,000.00"
Barrow Borough Council,Closed Business Lockdown Payment,Wholesale And Retail Trade; Repair Of Motor Vehicles And Motorcycles,04-Feb-21,LRSG_1612,Furness Furniture,"4,000.00"
Barrow Borough Council,Closed Business Lockdown Payment,Wholesale And Retail Trade; Repair Of Motor Vehicles And Motorcycles,04-Feb-21,LRSG_1613,Business Grant Recipient,"4,000.00"
Barrow Borough Council,Closed Business Lockdown Payment,Wholesale And Retail Trade; Repair Of Motor Vehicles And Motorcycles,04-Feb-21,LRSG_1614,Business Grant Recipient,"4,000.00"
Barrow Borough Council,Closed Business Lockdown Payment,Wholesale And Retail Trade; Repair Of Motor Vehicles And Motorcycles,04-Feb-21,LRSG_1615,G Richardson Gentry,"4,000.00"
Barrow Borough Council,Closed Business Lockdown Payment,Wholesale And Retail Trade; Repair Of Motor Vehicles And Motorcycles,04-Feb-21,LRSG_1616,Business Grant Recipient,"4,000.00"
Barrow Borough Council,Closed Business Lockdown Payment,Wholesale And Retail Trade; Repair Of Motor Vehicles And Motorcycles,04-Feb-21,LRSG_1617,Business Grant Recipient,"4,000.00"
Barrow Borough Council,Closed Business Lockdown Payment,Wholesale And Retail Trade; Repair Of Motor Vehicles And Motorcycles,04-Feb-21,LRSG_1618,Salon One Highfield Limited,"4,000.00"
Barrow Borough Council,Closed Business Lockdown Payment,Wholesale And Retail Trade; Repair Of Motor Vehicles And Motorcycles,04-Feb-21,LRSG_1619,Business Grant Recipient,"4,000.00"
Barrow Borough Council,Closed Business Lockdown Payment,Wholesale And Retail Trade; Repair Of Motor Vehicles And Motorcycles,04-Feb-21,LRSG_1620,Searle Audio Ltd,"4,000.00"
Barrow Borough Council,Closed Business Lockdown Payment,Wholesale And Retail Trade; Repair Of Motor Vehicles And Motorcycles,04-Feb-21,LRSG_1621,Business Grant Recipient,"4,000.00"
Barrow Borough Council,Closed Business Lockdown Payment,Wholesale And Retail Trade; Repair Of Motor Vehicles And Motorcycles,04-Feb-21,LRSG_1622,Weird or Wonderful Ltd,"4,000.00"
Barrow Borough Council,Closed Business Lockdown Payment,Wholesale And Retail Trade; Repair Of Motor Vehicles And Motorcycles,04-Feb-21,LRSG_1623,17sport,"4,000.00"
Barrow Borough Council,Closed Business Lockdown Payment,Other Service Activities,04-Feb-21,LRSG_1624,Love Yoga,"4,000.00"
Barrow Borough Council,Closed Business Lockdown Payment,Other Service Activities,04-Feb-21,LRSG_1625,Business Grant Recipient,"4,000.00"
Barrow Borough Council,Closed Business Lockdown Payment,Wholesale And Retail Trade; Repair Of Motor Vehicles And Motorcycles,04-Feb-21,LRSG_1626,Business Grant Recipient,"4,000.00"
Barrow Borough Council,Closed Business Lockdown Payment,Wholesale And Retail Trade; Repair Of Motor Vehicles And Motorcycles,04-Feb-21,LRSG_1627,Business Grant Recipient,"4,000.00"
Barrow Borough Council,Closed Business Lockdown Payment,Wholesale And Retail Trade; Repair Of Motor Vehicles And Motorcycles,04-Feb-21,LRSG_1628,Investacc Pension Trustees Limited,"4,000.00"
Barrow Borough Council,Closed Business Lockdown Payment,"Professional, Scientific And Technical Activities",04-Feb-21,LRSG_1629,Business Grant Recipient,"4,000.00"
Barrow Borough Council,Closed Business Lockdown Payment,Wholesale And Retail Trade; Repair Of Motor Vehicles And Motorcycles,04-Feb-21,LRSG_1630,Business Grant Recipient,"4,000.00"
Barrow Borough Council,Closed Business Lockdown Payment,Wholesale And Retail Trade; Repair Of Motor Vehicles And Motorcycles,04-Feb-21,LRSG_1631,Business Grant Recipient,"4,000.00"
Barrow Borough Council,Closed Business Lockdown Payment,Wholesale And Retail Trade; Repair Of Motor Vehicles And Motorcycles,04-Feb-21,LRSG_1632,Business Grant Recipient,"4,000.00"
Barrow Borough Council,Closed Business Lockdown Payment,Wholesale And Retail Trade; Repair Of Motor Vehicles And Motorcycles,04-Feb-21,LRSG_1633,J T Vehicles South Lakes Ltd,"4,000.00"
Barrow Borough Council,Closed Business Lockdown Payment,"Arts, Entertainment And Recreation",04-Feb-21,LRSG_1634,Lobo BJJ Ltd,"4,000.00"
Barrow Borough Council,Closed Business Lockdown Payment,Wholesale And Retail Trade; Repair Of Motor Vehicles And Motorcycles,04-Feb-21,LRSG_1635,Business Grant Recipient,"4,000.00"
Barrow Borough Council,Closed Business Lockdown Payment,Wholesale And Retail Trade; Repair Of Motor Vehicles And Motorcycles,04-Feb-21,LRSG_1636,Bliss pedispa ,"4,000.00"
Barrow Borough Council,Closed Business Lockdown Payment,Wholesale And Retail Trade; Repair Of Motor Vehicles And Motorcycles,04-Feb-21,LRSG_1637,Cumbria Sewing & Craft Centre Limited,"6,000.00"
Barrow Borough Council,Closed Business Lockdown Payment,Wholesale And Retail Trade; Repair Of Motor Vehicles And Motorcycles,04-Feb-21,LRSG_1638,Sweetie Pies,"4,000.00"
Barrow Borough Council,Closed Business Lockdown Payment,Wholesale And Retail Trade; Repair Of Motor Vehicles And Motorcycles,04-Feb-21,LRSG_1639,Business Grant Recipient,"4,000.00"
Barrow Borough Council,Closed Business Lockdown Payment,Wholesale And Retail Trade; Repair Of Motor Vehicles And Motorcycles,04-Feb-21,LRSG_1640,Business Grant Recipient,"4,000.00"
Barrow Borough Council,Closed Business Lockdown Payment,"Arts, Entertainment And Recreation",04-Feb-21,LRSG_1641,Graves (Cumberland) Ltd,"9,000.00"
Barrow Borough Council,Closed Business Lockdown Payment,Wholesale And Retail Trade; Repair Of Motor Vehicles And Motorcycles,04-Feb-21,LRSG_1642,Business Grant Recipient,"4,000.00"
Barrow Borough Council,Closed Business Lockdown Payment,Wholesale And Retail Trade; Repair Of Motor Vehicles And Motorcycles,04-Feb-21,LRSG_1643,Business Grant Recipient,"4,000.00"
Barrow Borough Council,Closed Business Lockdown Payment,Wholesale And Retail Trade; Repair Of Motor Vehicles And Motorcycles,04-Feb-21,LRSG_1644,Business Grant Recipient,"4,000.00"
Barrow Borough Council,Closed Business Lockdown Payment,Wholesale And Retail Trade; Repair Of Motor Vehicles And Motorcycles,04-Feb-21,LRSG_1645,Business Grant Recipient,"4,000.00"
Barrow Borough Council,Closed Business Lockdown Payment,Wholesale And Retail Trade; Repair Of Motor Vehicles And Motorcycles,04-Feb-21,LRSG_1646,Furness Laptop Repair Limited,"4,000.00"
Barrow Borough Council,Closed Business Lockdown Payment,Wholesale And Retail Trade; Repair Of Motor Vehicles And Motorcycles,04-Feb-21,LRSG_1647,Feel Fabulous Hair and Beauty Ltd,"4,000.00"
Barrow Borough Council,Closed Business Lockdown Payment,Wholesale And Retail Trade; Repair Of Motor Vehicles And Motorcycles,04-Feb-21,LRSG_1648,Business Grant Recipient,"4,000.00"
Barrow Borough Council,Closed Business Lockdown Payment,Wholesale And Retail Trade; Repair Of Motor Vehicles And Motorcycles,04-Feb-21,LRSG_1649,Business Grant Recipient,"4,000.00"
Barrow Borough Council,Closed Business Lockdown Payment,Wholesale And Retail Trade; Repair Of Motor Vehicles And Motorcycles,04-Feb-21,LRSG_1650,Business Grant Recipient,"4,000.00"
Barrow Borough Council,Closed Business Lockdown Payment,Accommodation And Food Service Activities,04-Feb-21,LRSG_1651,Crooklands Casuals Football Club,"4,000.00"
Barrow Borough Council,Closed Business Lockdown Payment,Wholesale And Retail Trade; Repair Of Motor Vehicles And Motorcycles,04-Feb-21,LRSG_1652,Special Occasions,"4,000.00"
Barrow Borough Council,Closed Business Lockdown Payment,Wholesale And Retail Trade; Repair Of Motor Vehicles And Motorcycles,04-Feb-21,LRSG_1653,HH77 LTD,"6,000.00"
Barrow Borough Council,Closed Business Lockdown Payment,Wholesale And Retail Trade; Repair Of Motor Vehicles And Motorcycles,04-Feb-21,LRSG_1654,Polished Nail and Beauty Training & Cara Tinning Skin Clinic ,"4,000.00"
Barrow Borough Council,Closed Business Lockdown Payment,Wholesale And Retail Trade; Repair Of Motor Vehicles And Motorcycles,04-Feb-21,LRSG_1655,Business Grant Recipient,"4,000.00"
Barrow Borough Council,Closed Business Lockdown Payment,Wholesale And Retail Trade; Repair Of Motor Vehicles And Motorcycles,04-Feb-21,LRSG_1656,Business Grant Recipient,"6,000.00"
Barrow Borough Council,Closed Business Lockdown Payment,Wholesale And Retail Trade; Repair Of Motor Vehicles And Motorcycles,04-Feb-21,LRSG_1657,Business Grant Recipient,"4,000.00"
Barrow Borough Council,Closed Business Lockdown Payment,Wholesale And Retail Trade; Repair Of Motor Vehicles And Motorcycles,04-Feb-21,LRSG_1658,All that glitters,"4,000.00"
Barrow Borough Council,Closed Business Lockdown Payment,Wholesale And Retail Trade; Repair Of Motor Vehicles And Motorcycles,04-Feb-21,LRSG_1659, LA CHIC,"4,000.00"
Barrow Borough Council,Closed Business Lockdown Payment,Wholesale And Retail Trade; Repair Of Motor Vehicles And Motorcycles,04-Feb-21,LRSG_1660,Posh Flowers Ltd,"4,000.00"
Barrow Borough Council,Closed Business Lockdown Payment,Wholesale And Retail Trade; Repair Of Motor Vehicles And Motorcycles,04-Feb-21,LRSG_1661,Business Grant Recipient,"4,000.00"
Barrow Borough Council,Closed Business Lockdown Payment,"Arts, Entertainment And Recreation",04-Feb-21,LRSG_1662,Dalton United Football Club,"4,000.00"
Barrow Borough Council,Closed Business Lockdown Payment,Wholesale And Retail Trade; Repair Of Motor Vehicles And Motorcycles,04-Feb-21,LRSG_1663,Business Grant Recipient,"4,000.00"
Barrow Borough Council,Closed Business Lockdown Payment,Wholesale And Retail Trade; Repair Of Motor Vehicles And Motorcycles,04-Feb-21,LRSG_1664,Pets Paradise ,"4,000.00"
Barrow Borough Council,Closed Business Lockdown Payment,Wholesale And Retail Trade; Repair Of Motor Vehicles And Motorcycles,04-Feb-21,LRSG_1665,The Little Flower Company,"4,000.00"
Barrow Borough Council,Closed Business Lockdown Payment,Wholesale And Retail Trade; Repair Of Motor Vehicles And Motorcycles,04-Feb-21,LRSG_1666,Business Grant Recipient,"4,000.00"
Barrow Borough Council,Closed Business Lockdown Payment,Accommodation And Food Service Activities,04-Feb-21,LRSG_1667,Business Grant Recipient,"4,000.00"
Barrow Borough Council,Closed Business Lockdown Payment,Wholesale And Retail Trade; Repair Of Motor Vehicles And Motorcycles,04-Feb-21,LRSG_1668,Business Grant Recipient,"4,000.00"
Barrow Borough Council,Closed Business Lockdown Payment,Accommodation And Food Service Activities,04-Feb-21,LRSG_1669,Business Grant Recipient,"4,000.00"
Barrow Borough Council,Closed Business Lockdown Payment,Wholesale And Retail Trade; Repair Of Motor Vehicles And Motorcycles,04-Feb-21,LRSG_1670, Raggz,"4,000.00"
Barrow Borough Council,Closed Business Lockdown Payment,Wholesale And Retail Trade; Repair Of Motor Vehicles And Motorcycles,04-Feb-21,LRSG_1671,Got It Covered Ltd,"4,000.00"
Barrow Borough Council,Closed Business Lockdown Payment,Wholesale And Retail Trade; Repair Of Motor Vehicles And Motorcycles,04-Feb-21,LRSG_1672,Business Grant Recipient,"4,000.00"
Barrow Borough Council,Closed Business Lockdown Payment,Wholesale And Retail Trade; Repair Of Motor Vehicles And Motorcycles,04-Feb-21,LRSG_1673,The Mane Man,"4,000.00"
Barrow Borough Council,Closed Business Lockdown Payment,Wholesale And Retail Trade; Repair Of Motor Vehicles And Motorcycles,04-Feb-21,LRSG_1674,Atomic Comica,"4,000.00"
Barrow Borough Council,Closed Business Lockdown Payment,Wholesale And Retail Trade; Repair Of Motor Vehicles And Motorcycles,04-Feb-21,LRSG_1675,Business Grant Recipient,"4,000.00"
Barrow Borough Council,Closed Business Lockdown Payment,Wholesale And Retail Trade; Repair Of Motor Vehicles And Motorcycles,04-Feb-21,LRSG_1676,Business Grant Recipient,"4,000.00"
Barrow Borough Council,Closed Business Lockdown Payment,Wholesale And Retail Trade; Repair Of Motor Vehicles And Motorcycles,04-Feb-21,LRSG_1677, Refine Medispa limited,"4,000.00"
Barrow Borough Council,Closed Business Lockdown Payment,Wholesale And Retail Trade; Repair Of Motor Vehicles And Motorcycles,04-Feb-21,LRSG_1678,Business Grant Recipient,"4,000.00"
Barrow Borough Council,Closed Business Lockdown Payment,Wholesale And Retail Trade; Repair Of Motor Vehicles And Motorcycles,04-Feb-21,LRSG_1679,Business Grant Recipient,"4,000.00"
Barrow Borough Council,Closed Business Lockdown Payment,Wholesale And Retail Trade; Repair Of Motor Vehicles And Motorcycles,04-Feb-21,LRSG_1680,Business Grant Recipient,"4,000.00"
Barrow Borough Council,Closed Business Lockdown Payment,Wholesale And Retail Trade; Repair Of Motor Vehicles And Motorcycles,04-Feb-21,LRSG_1681,DEVRO BARBERSHOP LTD,"4,000.00"
Barrow Borough Council,Closed Business Lockdown Payment,Wholesale And Retail Trade; Repair Of Motor Vehicles And Motorcycles,04-Feb-21,LRSG_1682,Business Grant Recipient,"4,000.00"
Barrow Borough Council,Local Restrictions Support Grant (Closed) Addendum: Tier 4,Wholesale And Retail Trade; Repair Of Motor Vehicles And Motorcycles,04-Feb-21,LRSG_1683,Business Grant Recipient,238.21
Barrow Borough Council,Local Restrictions Support Grant (Closed) Addendum: 5 January onwards,Wholesale And Retail Trade; Repair Of Motor Vehicles And Motorcycles,04-Feb-21,LRSG_1684,Business Grant Recipient,"2,001.00"
Barrow Borough Council,Local Restrictions Support Grant (Closed) Addendum: Tier 4,Wholesale And Retail Trade; Repair Of Motor Vehicles And Motorcycles,04-Feb-21,LRSG_1685,Business Grant Recipient,238.21
Barrow Borough Council,Local Restrictions Support Grant (Closed) Addendum: 5 January onwards,Wholesale And Retail Trade; Repair Of Motor Vehicles And Motorcycles,04-Feb-21,LRSG_1686,Business Grant Recipient,"2,001.00"
Barrow Borough Council,Local Restrictions Support Grant (Closed) Addendum: Tier 4,"Arts, Entertainment And Recreation",04-Feb-21,LRSG_1687,Furness Pistol/Rifle Club,238.21
Barrow Borough Council,Local Restrictions Support Grant (Closed) Addendum: 5 January onwards,"Arts, Entertainment And Recreation",04-Feb-21,LRSG_1688,Furness Pistol/Rifle Club,"2,001.00"
Barrow Borough Council,Local Restrictions Support Grant (Closed) Addendum: Tier 4,Accommodation And Food Service Activities,04-Feb-21,LRSG_1689,Business Grant Recipient,238.21
Barrow Borough Council,Local Restrictions Support Grant (Closed) Addendum: 5 January onwards,Accommodation And Food Service Activities,04-Feb-21,LRSG_1690,Business Grant Recipient,"2,001.00"
Barrow Borough Council,Local Restrictions Support Grant (Closed) Addendum: Tier 4,Wholesale And Retail Trade; Repair Of Motor Vehicles And Motorcycles,04-Feb-21,LRSG_1691,Dunelm soft furnishings Plc,535.71
Barrow Borough Council,Local Restrictions Support Grant (Closed) Addendum: 5 January onwards,Wholesale And Retail Trade; Repair Of Motor Vehicles And Motorcycles,04-Feb-21,LRSG_1692,Dunelm soft furnishings Plc,"4,500.00"
Barrow Borough Council,Local Restrictions Support Grant (Closed) Addendum: Tier 4,Wholesale And Retail Trade; Repair Of Motor Vehicles And Motorcycles,04-Feb-21,LRSG_1693,Business Grant Recipient,238.21
Barrow Borough Council,Local Restrictions Support Grant (Closed) Addendum: 5 January onwards,Wholesale And Retail Trade; Repair Of Motor Vehicles And Motorcycles,04-Feb-21,LRSG_1694,Business Grant Recipient,"2,001.00"
Barrow Borough Council,Local Restrictions Support Grant (Closed) Addendum: Tier 4,"Arts, Entertainment And Recreation",04-Feb-21,LRSG_1695,Signal Films,238.21
Barrow Borough Council,Local Restrictions Support Grant (Closed) Addendum: 5 January onwards,"Arts, Entertainment And Recreation",04-Feb-21,LRSG_1696,Signal Films,"2,001.00"
Barrow Borough Council,Local Restrictions Support Grant (Closed) Addendum: Tier 4,"Arts, Entertainment And Recreation",04-Feb-21,LRSG_1697,Signal Films,238.21
Barrow Borough Council,Local Restrictions Support Grant (Closed) Addendum: 5 January onwards,"Arts, Entertainment And Recreation",04-Feb-21,LRSG_1698,Signal Films,"2,001.00"
Barrow Borough Council,Local Restrictions Support Grant (Closed) Addendum: Tier 4,Wholesale And Retail Trade; Repair Of Motor Vehicles And Motorcycles,04-Feb-21,LRSG_1699,Business Grant Recipient,238.21
Barrow Borough Council,Local Restrictions Support Grant (Closed) Addendum: 5 January onwards,Wholesale And Retail Trade; Repair Of Motor Vehicles And Motorcycles,04-Feb-21,LRSG_1700,Business Grant Recipient,"2,001.00"
Barrow Borough Council,Local Restrictions Support Grant (Closed) Addendum: Tier 4,Wholesale And Retail Trade; Repair Of Motor Vehicles And Motorcycles,04-Feb-21,LRSG_1701,Business Grant Recipient,238.21
Barrow Borough Council,Local Restrictions Support Grant (Closed) Addendum: 5 January onwards,Wholesale And Retail Trade; Repair Of Motor Vehicles And Motorcycles,04-Feb-21,LRSG_1702,Business Grant Recipient,"2,001.00"
Barrow Borough Council,Local Restrictions Support Grant (Closed) Addendum: Tier 4,Wholesale And Retail Trade; Repair Of Motor Vehicles And Motorcycles,04-Feb-21,LRSG_1703,Business Grant Recipient,238.21
Barrow Borough Council,Local Restrictions Support Grant (Closed) Addendum: 5 January onwards,Wholesale And Retail Trade; Repair Of Motor Vehicles And Motorcycles,04-Feb-21,LRSG_1704,Business Grant Recipient,"2,001.00"
Barrow Borough Council,Local Restrictions Support Grant (Closed) Addendum: Tier 4,Accommodation And Food Service Activities,05-Feb-21,LRSG_1705,The Ninetailed Fox Cafe,238.21
Barrow Borough Council,Local Restrictions Support Grant (Closed) Addendum: 5 January onwards,Accommodation And Food Service Activities,05-Feb-21,LRSG_1706,The Ninetailed Fox Cafe,"2,001.00"
Barrow Borough Council,Local Restrictions Support Grant (Closed) Addendum: Tier 4,"Arts, Entertainment And Recreation",05-Feb-21,LRSG_1707,THE INDEPENDENT JIU-JITSU ASSOCIATION,238.21
Barrow Borough Council,Local Restrictions Support Grant (Closed) Addendum: 5 January onwards,"Arts, Entertainment And Recreation",05-Feb-21,LRSG_1708,THE INDEPENDENT JIU-JITSU ASSOCIATION,"2,001.00"
Barrow Borough Council,Local Restrictions Support Grant (Closed) Addendum: Tier 4,Wholesale And Retail Trade; Repair Of Motor Vehicles And Motorcycles,05-Feb-21,LRSG_1709,Matt Johnson Prestige LTD,357.14
Barrow Borough Council,Local Restrictions Support Grant (Closed) Addendum: 5 January onwards,Wholesale And Retail Trade; Repair Of Motor Vehicles And Motorcycles,05-Feb-21,LRSG_1710,Matt Johnson Prestige LTD,"3,000.00"
Barrow Borough Council,Local Restrictions Support Grant (Closed) Addendum: Tier 4,Wholesale And Retail Trade; Repair Of Motor Vehicles And Motorcycles,05-Feb-21,LRSG_1711,Business Grant Recipient,238.21
Barrow Borough Council,Local Restrictions Support Grant (Closed) Addendum: 5 January onwards,Wholesale And Retail Trade; Repair Of Motor Vehicles And Motorcycles,05-Feb-21,LRSG_1712,Business Grant Recipient,"2,001.00"
Barrow Borough Council,Local Restrictions Support Grant (Closed)�Addendum�,Wholesale And Retail Trade; Repair Of Motor Vehicles And Motorcycles,05-Feb-21,LRSG_1713,Business Grant Recipient,"2,000.00"
Barrow Borough Council,Local Restrictions Support Grant (Closed)�Addendum�,Wholesale And Retail Trade; Repair Of Motor Vehicles And Motorcycles,05-Feb-21,LRSG_1714,Business Grant Recipient,"1,334.00"
Barrow Borough Council,Local Restrictions Support Grant (Open)�,Accommodation And Food Service Activities,05-Feb-21,LRSG_1715,Business Grant Recipient,633.79
Barrow Borough Council,Local Restrictions Support Grant (Open)�,Accommodation And Food Service Activities,05-Feb-21,LRSG_1716,Zest Cumbria CIC,633.79
Barrow Borough Council,Local Restrictions Support Grant (Open)�,Accommodation And Food Service Activities,05-Feb-21,LRSG_1717,Zest Cumbria CIC,633.79
Barrow Borough Council,Local Restrictions Support Grant (Closed)�Addendum�,Accommodation And Food Service Activities,08-Feb-21,LRSG_1718,Business Grant Recipient,"1,334.00"
Barrow Borough Council,Local Restrictions Support Grant (Closed)�Addendum�,"Arts, Entertainment And Recreation",08-Feb-21,LRSG_1719,Business Grant Recipient,"1,334.00"
Barrow Borough Council,Local Restrictions Support Grant (Closed)�Addendum�,Wholesale And Retail Trade; Repair Of Motor Vehicles And Motorcycles,08-Feb-21,LRSG_1720,Business Grant Recipient,"1,334.00"
Barrow Borough Council,Local Restrictions Support Grant (Closed)�Addendum�,Accommodation And Food Service Activities,08-Feb-21,LRSG_1721,Business Grant Recipient,"1,334.00"
Barrow Borough Council,Local Restrictions Support Grant (Closed)�Addendum�,Wholesale And Retail Trade; Repair Of Motor Vehicles And Motorcycles,08-Feb-21,LRSG_1722,Empire Flooring Services Ltd ,"2,000.00"
Barrow Borough Council,Closed Business Lockdown Payment,Wholesale And Retail Trade; Repair Of Motor Vehicles And Motorcycles,08-Feb-21,LRSG_1723,TNT Comms Ltd,"6,000.00"
Barrow Borough Council,Closed Business Lockdown Payment,"Arts, Entertainment And Recreation",08-Feb-21,LRSG_1724,Barrow Island Community & Sports Trust Facility ,"4,000.00"
Barrow Borough Council,Closed Business Lockdown Payment,Wholesale And Retail Trade; Repair Of Motor Vehicles And Motorcycles,08-Feb-21,LRSG_1725,Business Grant Recipient,"4,000.00"
Barrow Borough Council,Closed Business Lockdown Payment,Wholesale And Retail Trade; Repair Of Motor Vehicles And Motorcycles,08-Feb-21,LRSG_1726,vision tv,"4,000.00"
Barrow Borough Council,Closed Business Lockdown Payment,Wholesale And Retail Trade; Repair Of Motor Vehicles And Motorcycles,08-Feb-21,LRSG_1727,Speed of Sound LTD,"4,000.00"
Barrow Borough Council,Closed Business Lockdown Payment,Wholesale And Retail Trade; Repair Of Motor Vehicles And Motorcycles,08-Feb-21,LRSG_1728,David Atkinson Car Sales,"4,000.00"
Barrow Borough Council,Closed Business Lockdown Payment,Wholesale And Retail Trade; Repair Of Motor Vehicles And Motorcycles,08-Feb-21,LRSG_1729,Business Grant Recipient,"4,000.00"
Barrow Borough Council,Closed Business Lockdown Payment,Wholesale And Retail Trade; Repair Of Motor Vehicles And Motorcycles,08-Feb-21,LRSG_1730,North West Consumables,"4,000.00"
Barrow Borough Council,Closed Business Lockdown Payment,Wholesale And Retail Trade; Repair Of Motor Vehicles And Motorcycles,08-Feb-21,LRSG_1731,Darren Roby collectors,"4,000.00"
Barrow Borough Council,Closed Business Lockdown Payment,Wholesale And Retail Trade; Repair Of Motor Vehicles And Motorcycles,08-Feb-21,LRSG_1732,Business Grant Recipient,"4,000.00"
Barrow Borough Council,Closed Business Lockdown Payment,Other Service Activities,08-Feb-21,LRSG_1733,Business Grant Recipient,"4,000.00"
Barrow Borough Council,Closed Business Lockdown Payment,Wholesale And Retail Trade; Repair Of Motor Vehicles And Motorcycles,08-Feb-21,LRSG_1734,Business Grant Recipient,"6,000.00"
Barrow Borough Council,Closed Business Lockdown Payment,Wholesale And Retail Trade; Repair Of Motor Vehicles And Motorcycles,08-Feb-21,LRSG_1735,Business Grant Recipient,"4,000.00"
Barrow Borough Council,Closed Business Lockdown Payment,Wholesale And Retail Trade; Repair Of Motor Vehicles And Motorcycles,08-Feb-21,LRSG_1736,Business Grant Recipient,"4,000.00"
Barrow Borough Council,Closed Business Lockdown Payment,Wholesale And Retail Trade; Repair Of Motor Vehicles And Motorcycles,08-Feb-21,LRSG_1737,Business Grant Recipient,"4,000.00"
Barrow Borough Council,Closed Business Lockdown Payment,"Arts, Entertainment And Recreation",08-Feb-21,LRSG_1738,ESCAPE ROOM (Barrow ltd),"4,000.00"
Barrow Borough Council,Closed Business Lockdown Payment,Wholesale And Retail Trade; Repair Of Motor Vehicles And Motorcycles,08-Feb-21,LRSG_1739,Business Grant Recipient,"4,000.00"
Barrow Borough Council,Closed Business Lockdown Payment,Wholesale And Retail Trade; Repair Of Motor Vehicles And Motorcycles,08-Feb-21,LRSG_1740,Business Grant Recipient,"4,000.00"
Barrow Borough Council,Closed Business Lockdown Payment,Wholesale And Retail Trade; Repair Of Motor Vehicles And Motorcycles,08-Feb-21,LRSG_1741,Business Grant Recipient,"4,000.00"
Barrow Borough Council,Closed Business Lockdown Payment,"Arts, Entertainment And Recreation",08-Feb-21,LRSG_1742,Business Grant Recipient,"4,000.00"
Barrow Borough Council,Closed Business Lockdown Payment,Wholesale And Retail Trade; Repair Of Motor Vehicles And Motorcycles,08-Feb-21,LRSG_1743,Marsha Lee ,"4,000.00"
Barrow Borough Council,Closed Business Lockdown Payment,Other Service Activities,08-Feb-21,LRSG_1744,Business Grant Recipient,"4,000.00"
Barrow Borough Council,Closed Business Lockdown Payment,"Arts, Entertainment And Recreation",08-Feb-21,LRSG_1745,Urban Extreme Ltd,"9,000.00"
Barrow Borough Council,Closed Business Lockdown Payment,Wholesale And Retail Trade; Repair Of Motor Vehicles And Motorcycles,08-Feb-21,LRSG_1746, Susan Dunn Limited,"4,000.00"
Barrow Borough Council,Closed Business Lockdown Payment,Wholesale And Retail Trade; Repair Of Motor Vehicles And Motorcycles,08-Feb-21,LRSG_1747,Guy Perry Ltd,"6,000.00"
Barrow Borough Council,Closed Business Lockdown Payment,Accommodation And Food Service Activities,08-Feb-21,LRSG_1748,Roose Pioneers ARLFC,"4,000.00"
Barrow Borough Council,Closed Business Lockdown Payment,Wholesale And Retail Trade; Repair Of Motor Vehicles And Motorcycles,08-Feb-21,LRSG_1749,Business Grant Recipient,"4,000.00"
Barrow Borough Council,Closed Business Lockdown Payment,Wholesale And Retail Trade; Repair Of Motor Vehicles And Motorcycles,08-Feb-21,LRSG_1750,Business Grant Recipient,"4,000.00"
Barrow Borough Council,Local Restrictions Support Grant (Closed) Addendum: Tier 4,Wholesale And Retail Trade; Repair Of Motor Vehicles And Motorcycles,08-Feb-21,LRSG_1751,Business Grant Recipient,-238.21
Barrow Borough Council,Local Restrictions Support Grant (Closed) Addendum: 5 January onwards,Wholesale And Retail Trade; Repair Of Motor Vehicles And Motorcycles,08-Feb-21,LRSG_1752,Business Grant Recipient,"-2,001.00"
Barrow Borough Council,Closed Business Lockdown Payment,Wholesale And Retail Trade; Repair Of Motor Vehicles And Motorcycles,08-Feb-21,LRSG_1753,Furness Watch and Jewellery Ltd,"4,000.00"
Barrow Borough Council,Closed Business Lockdown Payment,Other Service Activities,08-Feb-21,LRSG_1754,Business Grant Recipient,"4,000.00"
Barrow Borough Council,Closed Business Lockdown Payment,Other Service Activities,08-Feb-21,LRSG_1755,MJ Hairdressing LTD Trading as The Hair Lounge,"4,000.00"
Barrow Borough Council,Closed Business Lockdown Payment,Accommodation And Food Service Activities,08-Feb-21,LRSG_1756,Transfigure Fitness Ltd,"4,000.00"
Barrow Borough Council,Closed Business Lockdown Payment,Wholesale And Retail Trade; Repair Of Motor Vehicles And Motorcycles,08-Feb-21,LRSG_1757,Business Grant Recipient,"4,000.00"
Barrow Borough Council,Local Restrictions Support Grant (Closed) Addendum: Tier 4,Wholesale And Retail Trade; Repair Of Motor Vehicles And Motorcycles,08-Feb-21,LRSG_1758,Business Grant Recipient,-238.21
Barrow Borough Council,Local Restrictions Support Grant (Closed) Addendum: 5 January onwards,Wholesale And Retail Trade; Repair Of Motor Vehicles And Motorcycles,08-Feb-21,LRSG_1759,Business Grant Recipient,"-2,001.00"
Barrow Borough Council,Closed Business Lockdown Payment,Accommodation And Food Service Activities,08-Feb-21,LRSG_1760,Barrow Sporting Club Limited,"4,000.00"
Barrow Borough Council,Closed Business Lockdown Payment,Other Service Activities,08-Feb-21,LRSG_1761,Asylum 287 Barbershop,"4,000.00"
Barrow Borough Council,Closed Business Lockdown Payment,Wholesale And Retail Trade; Repair Of Motor Vehicles And Motorcycles,08-Feb-21,LRSG_1762,The Vapour Bar,"4,000.00"
Barrow Borough Council,Closed Business Lockdown Payment,Wholesale And Retail Trade; Repair Of Motor Vehicles And Motorcycles,08-Feb-21,LRSG_1763,Business Grant Recipient,"4,000.00"
Barrow Borough Council,Closed Business Lockdown Payment,Wholesale And Retail Trade; Repair Of Motor Vehicles And Motorcycles,08-Feb-21,LRSG_1764,Business Grant Recipient,"4,000.00"
Barrow Borough Council,Closed Business Lockdown Payment,Wholesale And Retail Trade; Repair Of Motor Vehicles And Motorcycles,08-Feb-21,LRSG_1765,Business Grant Recipient,"4,000.00"
Barrow Borough Council,Closed Business Lockdown Payment,Wholesale And Retail Trade; Repair Of Motor Vehicles And Motorcycles,08-Feb-21,LRSG_1766,Harts the Jewellers,"4,000.00"
Barrow Borough Council,Closed Business Lockdown Payment,Other Service Activities,08-Feb-21,LRSG_1767,Business Grant Recipient,"4,000.00"
Barrow Borough Council,Closed Business Lockdown Payment,Wholesale And Retail Trade; Repair Of Motor Vehicles And Motorcycles,08-Feb-21,LRSG_1768,The Bridal House ,"4,000.00"
Barrow Borough Council,Closed Business Lockdown Payment,Wholesale And Retail Trade; Repair Of Motor Vehicles And Motorcycles,08-Feb-21,LRSG_1769, Suzie B,"4,000.00"
Barrow Borough Council,Closed Business Lockdown Payment,Other Service Activities,08-Feb-21,LRSG_1770,Business Grant Recipient,"4,000.00"
Barrow Borough Council,Closed Business Lockdown Payment,Wholesale And Retail Trade; Repair Of Motor Vehicles And Motorcycles,08-Feb-21,LRSG_1771,Business Grant Recipient,"4,000.00"
Barrow Borough Council,Closed Business Lockdown Payment,Wholesale And Retail Trade; Repair Of Motor Vehicles And Motorcycles,08-Feb-21,LRSG_1772,Business Grant Recipient,"4,000.00"
Barrow Borough Council,Closed Business Lockdown Payment,Wholesale And Retail Trade; Repair Of Motor Vehicles And Motorcycles,08-Feb-21,LRSG_1773,Paul French Salon,"4,000.00"
Barrow Borough Council,Closed Business Lockdown Payment,Wholesale And Retail Trade; Repair Of Motor Vehicles And Motorcycles,08-Feb-21,LRSG_1774,St Mary's Hospice T/A  HOSPICE OF ST MARY OF FURNESS,"4,000.00"
Barrow Borough Council,Closed Business Lockdown Payment,Wholesale And Retail Trade; Repair Of Motor Vehicles And Motorcycles,08-Feb-21,LRSG_1775,St Mary's Hospice,"9,000.00"
Barrow Borough Council,Closed Business Lockdown Payment,Wholesale And Retail Trade; Repair Of Motor Vehicles And Motorcycles,08-Feb-21,LRSG_1776,Coco Cheveux Ltd,"4,000.00"
Barrow Borough Council,Closed Business Lockdown Payment,Accommodation And Food Service Activities,08-Feb-21,LRSG_1777,Business Grant Recipient,"4,000.00"
Barrow Borough Council,Local Restrictions Support Grant (Closed) Addendum: Tier 4,Accommodation And Food Service Activities,08-Feb-21,LRSG_1778,Business Grant Recipient,-238.21
Barrow Borough Council,Local Restrictions Support Grant (Closed) Addendum: 5 January onwards,Accommodation And Food Service Activities,08-Feb-21,LRSG_1779,Business Grant Recipient,"-2,001.00"
Barrow Borough Council,Closed Business Lockdown Payment,Wholesale And Retail Trade; Repair Of Motor Vehicles And Motorcycles,08-Feb-21,LRSG_1780,South West Cumbria United Area,"4,000.00"
Barrow Borough Council,Closed Business Lockdown Payment,Other Service Activities,08-Feb-21,LRSG_1781, Beau Laser Aesthetics,"4,000.00"
Barrow Borough Council,Closed Business Lockdown Payment,Wholesale And Retail Trade; Repair Of Motor Vehicles And Motorcycles,08-Feb-21,LRSG_1782,Elegance Hair Salon,"4,000.00"
Barrow Borough Council,Closed Business Lockdown Payment,Wholesale And Retail Trade; Repair Of Motor Vehicles And Motorcycles,08-Feb-21,LRSG_1783,A & L Crafts,"4,000.00"
Barrow Borough Council,Closed Business Lockdown Payment,Wholesale And Retail Trade; Repair Of Motor Vehicles And Motorcycles,08-Feb-21,LRSG_1784,Business Grant Recipient,"4,000.00"
Barrow Borough Council,Closed Business Lockdown Payment,Wholesale And Retail Trade; Repair Of Motor Vehicles And Motorcycles,08-Feb-21,LRSG_1785,Business Grant Recipient,"4,000.00"
Barrow Borough Council,Closed Business Lockdown Payment,Other Service Activities,08-Feb-21,LRSG_1786,Business Grant Recipient,"4,000.00"
Barrow Borough Council,Closed Business Lockdown Payment,Wholesale And Retail Trade; Repair Of Motor Vehicles And Motorcycles,08-Feb-21,LRSG_1787,A SPOT Ltd,"4,000.00"
Barrow Borough Council,Closed Business Lockdown Payment,Wholesale And Retail Trade; Repair Of Motor Vehicles And Motorcycles,08-Feb-21,LRSG_1788,TNT Records,"4,000.00"
Barrow Borough Council,Closed Business Lockdown Payment,Wholesale And Retail Trade; Repair Of Motor Vehicles And Motorcycles,08-Feb-21,LRSG_1789,The Bobby Pin,"4,000.00"
Barrow Borough Council,Closed Business Lockdown Payment,Accommodation And Food Service Activities,08-Feb-21,LRSG_1790,Business Grant Recipient,"4,000.00"
Barrow Borough Council,Closed Business Lockdown Payment,Wholesale And Retail Trade; Repair Of Motor Vehicles And Motorcycles,08-Feb-21,LRSG_1791,Business Grant Recipient,"4,000.00"
Barrow Borough Council,Closed Business Lockdown Payment,Wholesale And Retail Trade; Repair Of Motor Vehicles And Motorcycles,08-Feb-21,LRSG_1792,Business Grant Recipient,"4,000.00"
Barrow Borough Council,Closed Business Lockdown Payment,Wholesale And Retail Trade; Repair Of Motor Vehicles And Motorcycles,08-Feb-21,LRSG_1793,Business Grant Recipient,"4,000.00"
Barrow Borough Council,Closed Business Lockdown Payment,Accommodation And Food Service Activities,08-Feb-21,LRSG_1794,Masonic Hall,"4,000.00"
Barrow Borough Council,Closed Business Lockdown Payment,Wholesale And Retail Trade; Repair Of Motor Vehicles And Motorcycles,08-Feb-21,LRSG_1795,Abbey Blinds ,"4,000.00"
Barrow Borough Council,Closed Business Lockdown Payment,"Arts, Entertainment And Recreation",08-Feb-21,LRSG_1796,Abbots Vale Community Centre,"4,000.00"
Barrow Borough Council,Closed Business Lockdown Payment,Wholesale And Retail Trade; Repair Of Motor Vehicles And Motorcycles,08-Feb-21,LRSG_1797,Dandy's Ltd,"6,000.00"
Barrow Borough Council,Closed Business Lockdown Payment,Wholesale And Retail Trade; Repair Of Motor Vehicles And Motorcycles,08-Feb-21,LRSG_1798,Expressions of Lancaster Ltd,"4,000.00"
Barrow Borough Council,Closed Business Lockdown Payment,Wholesale And Retail Trade; Repair Of Motor Vehicles And Motorcycles,08-Feb-21,LRSG_1799,Pozo Barber,"4,000.00"
Barrow Borough Council,Closed Business Lockdown Payment,Wholesale And Retail Trade; Repair Of Motor Vehicles And Motorcycles,08-Feb-21,LRSG_1800,Business Grant Recipient,"4,000.00"
Barrow Borough Council,Closed Business Lockdown Payment,Wholesale And Retail Trade; Repair Of Motor Vehicles And Motorcycles,08-Feb-21,LRSG_1801, Angel nails ,"4,000.00"
Barrow Borough Council,Closed Business Lockdown Payment,Wholesale And Retail Trade; Repair Of Motor Vehicles And Motorcycles,08-Feb-21,LRSG_1802, House of Hair,"4,000.00"
Barrow Borough Council,Closed Business Lockdown Payment,Wholesale And Retail Trade; Repair Of Motor Vehicles And Motorcycles,08-Feb-21,LRSG_1803,Business Grant Recipient,"4,000.00"
Barrow Borough Council,Closed Business Lockdown Payment,Other Service Activities,08-Feb-21,LRSG_1804,Tony Hand Car Wash Ltd,"4,000.00"
Barrow Borough Council,Closed Business Lockdown Payment,Wholesale And Retail Trade; Repair Of Motor Vehicles And Motorcycles,08-Feb-21,LRSG_1805,South Lakes Interiors Ltd,"4,000.00"
Barrow Borough Council,Closed Business Lockdown Payment,Other Service Activities,08-Feb-21,LRSG_1806,Business Grant Recipient,"4,000.00"
Barrow Borough Council,Closed Business Lockdown Payment,"Arts, Entertainment And Recreation",08-Feb-21,LRSG_1807,Business Grant Recipient,"4,000.00"
Barrow Borough Council,Closed Business Lockdown Payment,Wholesale And Retail Trade; Repair Of Motor Vehicles And Motorcycles,08-Feb-21,LRSG_1808,Business Grant Recipient,"4,000.00"
Barrow Borough Council,Closed Business Lockdown Payment,Wholesale And Retail Trade; Repair Of Motor Vehicles And Motorcycles,08-Feb-21,LRSG_1809,Business Grant Recipient,"4,000.00"
Barrow Borough Council,Closed Business Lockdown Payment,Wholesale And Retail Trade; Repair Of Motor Vehicles And Motorcycles,08-Feb-21,LRSG_1810,SB Wallpaper,"4,000.00"
Barrow Borough Council,Closed Business Lockdown Payment,Wholesale And Retail Trade; Repair Of Motor Vehicles And Motorcycles,08-Feb-21,LRSG_1811,Ian Ford Books Limited ,"4,000.00"
Barrow Borough Council,Closed Business Lockdown Payment,Wholesale And Retail Trade; Repair Of Motor Vehicles And Motorcycles,08-Feb-21,LRSG_1812,All Style Tattoos Ltd,"4,000.00"
Barrow Borough Council,Closed Business Lockdown Payment,Wholesale And Retail Trade; Repair Of Motor Vehicles And Motorcycles,08-Feb-21,LRSG_1813,Istanbul Barber,"4,000.00"
Barrow Borough Council,Closed Business Lockdown Payment,Wholesale And Retail Trade; Repair Of Motor Vehicles And Motorcycles,08-Feb-21,LRSG_1814,Business Grant Recipient,"4,000.00"
Barrow Borough Council,Closed Business Lockdown Payment,Wholesale And Retail Trade; Repair Of Motor Vehicles And Motorcycles,08-Feb-21,LRSG_1815,Mind In Furness,"4,000.00"
Barrow Borough Council,Closed Business Lockdown Payment,Wholesale And Retail Trade; Repair Of Motor Vehicles And Motorcycles,08-Feb-21,LRSG_1816,Business Grant Recipient,"4,000.00"
Barrow Borough Council,Closed Business Lockdown Payment,Wholesale And Retail Trade; Repair Of Motor Vehicles And Motorcycles,08-Feb-21,LRSG_1817,Business Grant Recipient,"4,000.00"
Barrow Borough Council,Closed Business Lockdown Payment,Wholesale And Retail Trade; Repair Of Motor Vehicles And Motorcycles,08-Feb-21,LRSG_1818,Business Grant Recipient,"4,000.00"
Barrow Borough Council,Closed Business Lockdown Payment,Wholesale And Retail Trade; Repair Of Motor Vehicles And Motorcycles,08-Feb-21,LRSG_1819,The Owl Sanctuary,"4,000.00"
Barrow Borough Council,Closed Business Lockdown Payment,Other Service Activities,08-Feb-21,LRSG_1820,SA Salon ,"4,000.00"
Barrow Borough Council,Closed Business Lockdown Payment,Wholesale And Retail Trade; Repair Of Motor Vehicles And Motorcycles,08-Feb-21,LRSG_1821,Business Grant Recipient,"4,000.00"
Barrow Borough Council,Local Restrictions Support Grant (Open)�,Accommodation And Food Service Activities,08-Feb-21,LRSG_1822,The Sun Inn,"2,175.00"
Barrow Borough Council,Local Restrictions Support Grant (Closed) Addendum: Tier 4,Accommodation And Food Service Activities,08-Feb-21,LRSG_1823,The Sun Inn,535.71
Barrow Borough Council,Local Restrictions Support Grant (Closed) Addendum: 5 January onwards,Accommodation And Food Service Activities,08-Feb-21,LRSG_1824,The Sun Inn,"4,500.00"
Barrow Borough Council,Local Restrictions Support Grant (Closed) Addendum: Tier 4,Wholesale And Retail Trade; Repair Of Motor Vehicles And Motorcycles,08-Feb-21,LRSG_1825,Business Grant Recipient,357.14
Barrow Borough Council,Local Restrictions Support Grant (Closed) Addendum: 5 January onwards,Wholesale And Retail Trade; Repair Of Motor Vehicles And Motorcycles,08-Feb-21,LRSG_1826,Business Grant Recipient,"3,000.00"
Barrow Borough Council,Local Restrictions Support Grant (Closed) Addendum: Tier 4,Wholesale And Retail Trade; Repair Of Motor Vehicles And Motorcycles,08-Feb-21,LRSG_1827,Business Grant Recipient,238.21
Barrow Borough Council,Local Restrictions Support Grant (Closed) Addendum: 5 January onwards,Wholesale And Retail Trade; Repair Of Motor Vehicles And Motorcycles,08-Feb-21,LRSG_1828,Business Grant Recipient,"2,001.00"
Barrow Borough Council,Local Restrictions Support Grant (Closed)�,Accommodation And Food Service Activities,08-Feb-21,LRSG_1829,The Black Dog Inn,"1,381.64"
Barrow Borough Council,Local Restrictions Support Grant (Closed) Addendum: Tier 4,Accommodation And Food Service Activities,08-Feb-21,LRSG_1830,The Black Dog Inn,238.21
Barrow Borough Council,Local Restrictions Support Grant (Closed) Addendum: 5 January onwards,Accommodation And Food Service Activities,08-Feb-21,LRSG_1831,The Black Dog Inn,"2,001.00"
Barrow Borough Council,Local Restrictions Support Grant (Closed)�,Accommodation And Food Service Activities,08-Feb-21,LRSG_1832,Business Grant Recipient,"1,381.64"
Barrow Borough Council,Local Restrictions Support Grant (Closed) Addendum: Tier 4,Accommodation And Food Service Activities,08-Feb-21,LRSG_1833,Business Grant Recipient,238.21
Barrow Borough Council,Local Restrictions Support Grant (Closed) Addendum: 5 January onwards,Accommodation And Food Service Activities,08-Feb-21,LRSG_1834,Business Grant Recipient,"2,001.00"
Barrow Borough Council,Christmas Support Payment for �wet-led pubs� (CSP),Accommodation And Food Service Activities,08-Feb-21,LRSG_1835,Business Grant Recipient,"-1,000.00"
Barrow Borough Council,Local Restrictions Support Grant (Closed)�Addendum�,Wholesale And Retail Trade; Repair Of Motor Vehicles And Motorcycles,09-Feb-21,LRSG_1836,Furness Heating Components Ltd,"2,000.00"
Barrow Borough Council,Local Restrictions Support Grant (Closed)�Addendum�,Wholesale And Retail Trade; Repair Of Motor Vehicles And Motorcycles,09-Feb-21,LRSG_1837,Business Grant Recipient,"1,334.00"
Barrow Borough Council,Local Restrictions Support Grant (Closed)�Addendum�,Wholesale And Retail Trade; Repair Of Motor Vehicles And Motorcycles,09-Feb-21,LRSG_1838,MBR Motorsports Ltd ,"1,334.00"
Barrow Borough Council,Local Restrictions Support Grant (Closed)�Addendum�,Wholesale And Retail Trade; Repair Of Motor Vehicles And Motorcycles,09-Feb-21,LRSG_1839,GR & MM Blackledge PLC,"2,000.00"
Barrow Borough Council,Local Restrictions Support Grant (Closed)�Addendum�,Wholesale And Retail Trade; Repair Of Motor Vehicles And Motorcycles,09-Feb-21,LRSG_1840,Business Grant Recipient,"1,334.00"
Barrow Borough Council,Local Restrictions Support Grant (Open)�,"Arts, Entertainment And Recreation",09-Feb-21,LRSG_1841,Askam rugby club,633.79
Barrow Borough Council,Local Restrictions Support Grant (Open)�,Accommodation And Food Service Activities,09-Feb-21,LRSG_1842,Business Grant Recipient,633.79
Barrow Borough Council,Local Restrictions Support Grant (Open)�,Accommodation And Food Service Activities,09-Feb-21,LRSG_1843,Business Grant Recipient,967.36
Barrow Borough Council,Local Restrictions Support Grant (Closed) Addendum: Tier 4,Accommodation And Food Service Activities,09-Feb-21,LRSG_1844,Business Grant Recipient,238.21
Barrow Borough Council,Local Restrictions Support Grant (Closed) Addendum: 5 January onwards,Accommodation And Food Service Activities,09-Feb-21,LRSG_1845,Business Grant Recipient,"2,001.00"
Barrow Borough Council,Local Restrictions Support Grant (Closed)�,Accommodation And Food Service Activities,09-Feb-21,LRSG_1846,Business Grant Recipient,"1,381.64"
Barrow Borough Council,Local Restrictions Support Grant (Closed) Addendum: Tier 4,Accommodation And Food Service Activities,09-Feb-21,LRSG_1847,Business Grant Recipient,238.21
Barrow Borough Council,Local Restrictions Support Grant (Closed) Addendum: 5 January onwards,Accommodation And Food Service Activities,09-Feb-21,LRSG_1848,Business Grant Recipient,"2,001.00"
Barrow Borough Council,Local Restrictions Support Grant (Closed) Addendum: Tier 4,Wholesale And Retail Trade; Repair Of Motor Vehicles And Motorcycles,09-Feb-21,LRSG_1849,Crafty Hobbies,238.21
Barrow Borough Council,Local Restrictions Support Grant (Closed) Addendum: 5 January onwards,Wholesale And Retail Trade; Repair Of Motor Vehicles And Motorcycles,09-Feb-21,LRSG_1850,Crafty Hobbies,"2,001.00"
Barrow Borough Council,Local Restrictions Support Grant (Closed) Addendum: Tier 4,Wholesale And Retail Trade; Repair Of Motor Vehicles And Motorcycles,09-Feb-21,LRSG_1851,Head Office Furness,238.21
Barrow Borough Council,Local Restrictions Support Grant (Closed) Addendum: 5 January onwards,Wholesale And Retail Trade; Repair Of Motor Vehicles And Motorcycles,09-Feb-21,LRSG_1852,Head Office Furness,"2,001.00"
Barrow Borough Council,Local Restrictions Support Grant (Closed) Addendum: Tier 4,"Arts, Entertainment And Recreation",09-Feb-21,LRSG_1853,Business Grant Recipient,238.21
Barrow Borough Council,Local Restrictions Support Grant (Closed) Addendum: 5 January onwards,"Arts, Entertainment And Recreation",09-Feb-21,LRSG_1854,Business Grant Recipient,"2,001.00"
Barrow Borough Council,Local Restrictions Support Grant (Closed) Addendum: Tier 4,Other Service Activities,09-Feb-21,LRSG_1855,Boss Hair Studio,238.21
Barrow Borough Council,Local Restrictions Support Grant (Closed) Addendum: 5 January onwards,Other Service Activities,09-Feb-21,LRSG_1856,Boss Hair Studio,"2,001.00"
Barrow Borough Council,Local Restrictions Support Grant (Closed) Addendum: Tier 4,"Arts, Entertainment And Recreation",09-Feb-21,LRSG_1857,Roose Bowling Club,238.21
Barrow Borough Council,Local Restrictions Support Grant (Closed) Addendum: 5 January onwards,"Arts, Entertainment And Recreation",09-Feb-21,LRSG_1858,Roose Bowling Club,"2,001.00"
Barrow Borough Council,Christmas Support Payment for �wet-led pubs� (CSP),Accommodation And Food Service Activities,09-Feb-21,LRSG_1859, Kill One Club,"1,000.00"
Barrow Borough Council,Christmas Support Payment for �wet-led pubs� (CSP),Accommodation And Food Service Activities,09-Feb-21,LRSG_1860,Business Grant Recipient,"1,000.00"
Barrow Borough Council,Local Restrictions Support Grant (Closed)�Addendum�,Accommodation And Food Service Activities,10-Feb-21,LRSG_1861,Business Grant Recipient,"1,334.00"
Barrow Borough Council,Local Restrictions Support Grant (Closed)�Addendum�,"Arts, Entertainment And Recreation",10-Feb-21,LRSG_1862,Walney Island FC ,"1,334.00"
Barrow Borough Council,Closed Business Lockdown Payment,"Arts, Entertainment And Recreation",10-Feb-21,LRSG_1863,Holker Old Boys Football Club,"4,000.00"
Barrow Borough Council,Closed Business Lockdown Payment,"Arts, Entertainment And Recreation",10-Feb-21,LRSG_1864,Free Spirit Academy of Dance and Acrobatics Ltd,"4,000.00"
Barrow Borough Council,Closed Business Lockdown Payment,Wholesale And Retail Trade; Repair Of Motor Vehicles And Motorcycles,10-Feb-21,LRSG_1865,South Lakes Cars,"4,000.00"
Barrow Borough Council,Closed Business Lockdown Payment,"Arts, Entertainment And Recreation",10-Feb-21,LRSG_1866,Reaching Wellness Ltd,"4,000.00"
Barrow Borough Council,Closed Business Lockdown Payment,Wholesale And Retail Trade; Repair Of Motor Vehicles And Motorcycles,10-Feb-21,LRSG_1867,The Body Shop International,"6,000.00"
Barrow Borough Council,Closed Business Lockdown Payment,Wholesale And Retail Trade; Repair Of Motor Vehicles And Motorcycles,10-Feb-21,LRSG_1868,Business Grant Recipient,"4,000.00"
Barrow Borough Council,Closed Business Lockdown Payment,Wholesale And Retail Trade; Repair Of Motor Vehicles And Motorcycles,10-Feb-21,LRSG_1869,Business Grant Recipient,"4,000.00"
Barrow Borough Council,Closed Business Lockdown Payment,Wholesale And Retail Trade; Repair Of Motor Vehicles And Motorcycles,10-Feb-21,LRSG_1870,Business Grant Recipient,"4,000.00"
Barrow Borough Council,Closed Business Lockdown Payment,Wholesale And Retail Trade; Repair Of Motor Vehicles And Motorcycles,10-Feb-21,LRSG_1871,Business Grant Recipient,"4,000.00"
Barrow Borough Council,Closed Business Lockdown Payment,Accommodation And Food Service Activities,10-Feb-21,LRSG_1872,Business Grant Recipient,"4,000.00"
Barrow Borough Council,Closed Business Lockdown Payment,Wholesale And Retail Trade; Repair Of Motor Vehicles And Motorcycles,10-Feb-21,LRSG_1873,Fat Bobs CDs Ltd,"4,000.00"
Barrow Borough Council,Closed Business Lockdown Payment,Wholesale And Retail Trade; Repair Of Motor Vehicles And Motorcycles,10-Feb-21,LRSG_1874,Business Grant Recipient,"6,000.00"
Barrow Borough Council,Closed Business Lockdown Payment,Wholesale And Retail Trade; Repair Of Motor Vehicles And Motorcycles,10-Feb-21,LRSG_1875,Animal Welfare (Furness),"4,000.00"
Barrow Borough Council,Closed Business Lockdown Payment,Wholesale And Retail Trade; Repair Of Motor Vehicles And Motorcycles,10-Feb-21,LRSG_1876,Animal Welfare (Furness),"4,000.00"
Barrow Borough Council,Closed Business Lockdown Payment,Wholesale And Retail Trade; Repair Of Motor Vehicles And Motorcycles,10-Feb-21,LRSG_1877,Business Grant Recipient,"4,000.00"
Barrow Borough Council,Closed Business Lockdown Payment,Wholesale And Retail Trade; Repair Of Motor Vehicles And Motorcycles,10-Feb-21,LRSG_1878,Pye Motors Ltd,"6,000.00"
Barrow Borough Council,Closed Business Lockdown Payment,Wholesale And Retail Trade; Repair Of Motor Vehicles And Motorcycles,10-Feb-21,LRSG_1879,Business Grant Recipient,"4,000.00"
Barrow Borough Council,Closed Business Lockdown Payment,Accommodation And Food Service Activities,10-Feb-21,LRSG_1880,Furness Cricket Club,"4,000.00"
Barrow Borough Council,Closed Business Lockdown Payment,"Arts, Entertainment And Recreation",10-Feb-21,LRSG_1881,Cumbria Zoo Co Ltd,"9,000.00"
Barrow Borough Council,Closed Business Lockdown Payment,Wholesale And Retail Trade; Repair Of Motor Vehicles And Motorcycles,10-Feb-21,LRSG_1882,Mobility Solutions Barrow Ltd,"4,000.00"
Barrow Borough Council,Closed Business Lockdown Payment,Wholesale And Retail Trade; Repair Of Motor Vehicles And Motorcycles,10-Feb-21,LRSG_1883,Business Grant Recipient,"4,000.00"
Barrow Borough Council,Closed Business Lockdown Payment,Wholesale And Retail Trade; Repair Of Motor Vehicles And Motorcycles,10-Feb-21,LRSG_1884,CJS Car Sales,"4,000.00"
Barrow Borough Council,Closed Business Lockdown Payment,Wholesale And Retail Trade; Repair Of Motor Vehicles And Motorcycles,10-Feb-21,LRSG_1885,Business Grant Recipient,"4,000.00"
Barrow Borough Council,Closed Business Lockdown Payment,Other Service Activities,10-Feb-21,LRSG_1886,Business Grant Recipient,"4,000.00"
Barrow Borough Council,Closed Business Lockdown Payment,"Arts, Entertainment And Recreation",10-Feb-21,LRSG_1887,Vue Entertainment Ltd ,"9,000.00"
Barrow Borough Council,Closed Business Lockdown Payment,Wholesale And Retail Trade; Repair Of Motor Vehicles And Motorcycles,10-Feb-21,LRSG_1888,Window Worx Ltd T/A The Wet Room,"4,000.00"
Barrow Borough Council,Closed Business Lockdown Payment,Wholesale And Retail Trade; Repair Of Motor Vehicles And Motorcycles,10-Feb-21,LRSG_1889,Business Grant Recipient,"4,000.00"
Barrow Borough Council,Closed Business Lockdown Payment,Wholesale And Retail Trade; Repair Of Motor Vehicles And Motorcycles,10-Feb-21,LRSG_1890, hair Flair Ltd,"4,000.00"
Barrow Borough Council,Closed Business Lockdown Payment,Wholesale And Retail Trade; Repair Of Motor Vehicles And Motorcycles,10-Feb-21,LRSG_1891,Waklin Ltd T/A Cash Generator,"6,000.00"
Barrow Borough Council,Closed Business Lockdown Payment,Wholesale And Retail Trade; Repair Of Motor Vehicles And Motorcycles,10-Feb-21,LRSG_1892,Stollers Furniture World Limited,"9,000.00"
Barrow Borough Council,Closed Business Lockdown Payment,Wholesale And Retail Trade; Repair Of Motor Vehicles And Motorcycles,10-Feb-21,LRSG_1893,Business Grant Recipient,"4,000.00"
Barrow Borough Council,Closed Business Lockdown Payment,Wholesale And Retail Trade; Repair Of Motor Vehicles And Motorcycles,10-Feb-21,LRSG_1894,Definitions /Light,"4,000.00"
Barrow Borough Council,Closed Business Lockdown Payment,Wholesale And Retail Trade; Repair Of Motor Vehicles And Motorcycles,10-Feb-21,LRSG_1895,Business Grant Recipient,"4,000.00"
Barrow Borough Council,Closed Business Lockdown Payment,Wholesale And Retail Trade; Repair Of Motor Vehicles And Motorcycles,10-Feb-21,LRSG_1896,Business Grant Recipient,"4,000.00"
Barrow Borough Council,Closed Business Lockdown Payment,Accommodation And Food Service Activities,10-Feb-21,LRSG_1897,Business Grant Recipient,"4,000.00"
Barrow Borough Council,Closed Business Lockdown Payment,Wholesale And Retail Trade; Repair Of Motor Vehicles And Motorcycles,10-Feb-21,LRSG_1898,Business Grant Recipient,"4,000.00"
Barrow Borough Council,Closed Business Lockdown Payment,Wholesale And Retail Trade; Repair Of Motor Vehicles And Motorcycles,10-Feb-21,LRSG_1899,Premier Tiles Barrow-in-Furness Ltd,"6,000.00"
Barrow Borough Council,Closed Business Lockdown Payment,Accommodation And Food Service Activities,10-Feb-21,LRSG_1900,Business Grant Recipient,"4,000.00"
Barrow Borough Council,Closed Business Lockdown Payment,Accommodation And Food Service Activities,10-Feb-21,LRSG_1901,"Barrow Afc Supporters Club,","4,000.00"
Barrow Borough Council,Closed Business Lockdown Payment,Wholesale And Retail Trade; Repair Of Motor Vehicles And Motorcycles,10-Feb-21,LRSG_1902,Business Grant Recipient,"4,000.00"
Barrow Borough Council,Closed Business Lockdown Payment,"Arts, Entertainment And Recreation",10-Feb-21,LRSG_1903,South Lakes Rock School,"4,000.00"
Barrow Borough Council,Closed Business Lockdown Payment,Wholesale And Retail Trade; Repair Of Motor Vehicles And Motorcycles,10-Feb-21,LRSG_1904,Lakeland Leisure,"4,000.00"
Barrow Borough Council,Closed Business Lockdown Payment,Other Service Activities,10-Feb-21,LRSG_1905,Business Grant Recipient,"4,000.00"
Barrow Borough Council,Closed Business Lockdown Payment,Other Service Activities,10-Feb-21,LRSG_1906,Bank hair and beauty ,"4,000.00"
Barrow Borough Council,Closed Business Lockdown Payment,"Arts, Entertainment And Recreation",10-Feb-21,LRSG_1907,Barrow Island Bowling Club,"4,000.00"
Barrow Borough Council,Closed Business Lockdown Payment,Wholesale And Retail Trade; Repair Of Motor Vehicles And Motorcycles,10-Feb-21,LRSG_1908,Business Grant Recipient,"4,000.00"
Barrow Borough Council,Closed Business Lockdown Payment,Wholesale And Retail Trade; Repair Of Motor Vehicles And Motorcycles,10-Feb-21,LRSG_1909,Business Grant Recipient,"4,000.00"
Barrow Borough Council,Closed Business Lockdown Payment,Wholesale And Retail Trade; Repair Of Motor Vehicles And Motorcycles,10-Feb-21,LRSG_1910,Business Grant Recipient,"4,000.00"
Barrow Borough Council,Closed Business Lockdown Payment,Accommodation And Food Service Activities,10-Feb-21,LRSG_1911,Business Grant Recipient,"4,000.00"
Barrow Borough Council,Closed Business Lockdown Payment,Wholesale And Retail Trade; Repair Of Motor Vehicles And Motorcycles,10-Feb-21,LRSG_1912,Mobility Solutions Barrow Ltd,"4,000.00"
Barrow Borough Council,Closed Business Lockdown Payment,Wholesale And Retail Trade; Repair Of Motor Vehicles And Motorcycles,10-Feb-21,LRSG_1913,Business Grant Recipient,"4,000.00"
Barrow Borough Council,Closed Business Lockdown Payment,Accommodation And Food Service Activities,10-Feb-21,LRSG_1914,Specpride Limited,"4,000.00"
Barrow Borough Council,Closed Business Lockdown Payment,Wholesale And Retail Trade; Repair Of Motor Vehicles And Motorcycles,10-Feb-21,LRSG_1915,Business Grant Recipient,"4,000.00"
Barrow Borough Council,Closed Business Lockdown Payment,Wholesale And Retail Trade; Repair Of Motor Vehicles And Motorcycles,10-Feb-21,LRSG_1916,Business Grant Recipient,"4,000.00"
Barrow Borough Council,Closed Business Lockdown Payment,Wholesale And Retail Trade; Repair Of Motor Vehicles And Motorcycles,10-Feb-21,LRSG_1917,Business Grant Recipient,"4,000.00"
Barrow Borough Council,Closed Business Lockdown Payment,"Arts, Entertainment And Recreation",10-Feb-21,LRSG_1918,Furness Pistol/Rifle Club,"4,000.00"
Barrow Borough Council,Closed Business Lockdown Payment,Accommodation And Food Service Activities,10-Feb-21,LRSG_1919,Business Grant Recipient,"4,000.00"
Barrow Borough Council,Closed Business Lockdown Payment,Wholesale And Retail Trade; Repair Of Motor Vehicles And Motorcycles,10-Feb-21,LRSG_1920,Dunelm soft furnishings Plc,"9,000.00"
Barrow Borough Council,Closed Business Lockdown Payment,Wholesale And Retail Trade; Repair Of Motor Vehicles And Motorcycles,10-Feb-21,LRSG_1921,Business Grant Recipient,"4,000.00"
Barrow Borough Council,Closed Business Lockdown Payment,"Arts, Entertainment And Recreation",10-Feb-21,LRSG_1922,Signal Films,"4,000.00"
Barrow Borough Council,Closed Business Lockdown Payment,"Arts, Entertainment And Recreation",10-Feb-21,LRSG_1923,Signal Films,"4,000.00"
Barrow Borough Council,Closed Business Lockdown Payment,Wholesale And Retail Trade; Repair Of Motor Vehicles And Motorcycles,10-Feb-21,LRSG_1924,Business Grant Recipient,"4,000.00"
Barrow Borough Council,Closed Business Lockdown Payment,Wholesale And Retail Trade; Repair Of Motor Vehicles And Motorcycles,10-Feb-21,LRSG_1925,Business Grant Recipient,"4,000.00"
Barrow Borough Council,Closed Business Lockdown Payment,Other Service Activities,10-Feb-21,LRSG_1926,Business Grant Recipient,"4,000.00"
Barrow Borough Council,Closed Business Lockdown Payment,Accommodation And Food Service Activities,10-Feb-21,LRSG_1927,The Ninetailed Fox Cafe,"4,000.00"
Barrow Borough Council,Closed Business Lockdown Payment,"Arts, Entertainment And Recreation",10-Feb-21,LRSG_1928, THE INDEPENDENT JIU-JITSU ASSOCIATION,"4,000.00"
Barrow Borough Council,Closed Business Lockdown Payment,Wholesale And Retail Trade; Repair Of Motor Vehicles And Motorcycles,10-Feb-21,LRSG_1929,Matt Johnson Prestige LTD,"6,000.00"
Barrow Borough Council,Closed Business Lockdown Payment,Wholesale And Retail Trade; Repair Of Motor Vehicles And Motorcycles,10-Feb-21,LRSG_1930,Business Grant Recipient,"4,000.00"
Barrow Borough Council,Closed Business Lockdown Payment,Wholesale And Retail Trade; Repair Of Motor Vehicles And Motorcycles,10-Feb-21,LRSG_1931,Business Grant Recipient,"6,000.00"
Barrow Borough Council,Closed Business Lockdown Payment,Wholesale And Retail Trade; Repair Of Motor Vehicles And Motorcycles,10-Feb-21,LRSG_1932,Business Grant Recipient,"4,000.00"
Barrow Borough Council,Closed Business Lockdown Payment,Wholesale And Retail Trade; Repair Of Motor Vehicles And Motorcycles,10-Feb-21,LRSG_1933,Crafty Hobbies,"4,000.00"
Barrow Borough Council,Closed Business Lockdown Payment,Wholesale And Retail Trade; Repair Of Motor Vehicles And Motorcycles,10-Feb-21,LRSG_1934,Head Office Furness,"4,000.00"
Barrow Borough Council,Closed Business Lockdown Payment,"Arts, Entertainment And Recreation",10-Feb-21,LRSG_1935,Business Grant Recipient,"4,000.00"
Barrow Borough Council,Closed Business Lockdown Payment,Other Service Activities,10-Feb-21,LRSG_1936,Boss Hair Studio,"4,000.00"
Barrow Borough Council,Closed Business Lockdown Payment,"Arts, Entertainment And Recreation",10-Feb-21,LRSG_1937,Roose Bowling Club,"4,000.00"
Barrow Borough Council,Local Restrictions Support Grant (Closed) Addendum: Tier 4,Wholesale And Retail Trade; Repair Of Motor Vehicles And Motorcycles,10-Feb-21,LRSG_1938,MBR Motorsports Ltd ,238.21
Barrow Borough Council,Local Restrictions Support Grant (Closed) Addendum: 5 January onwards,Wholesale And Retail Trade; Repair Of Motor Vehicles And Motorcycles,10-Feb-21,LRSG_1939,MBR Motorsports Ltd ,"2,001.00"
Barrow Borough Council,Local Restrictions Support Grant (Closed) Addendum: Tier 4,Wholesale And Retail Trade; Repair Of Motor Vehicles And Motorcycles,10-Feb-21,LRSG_1940,Business Grant Recipient,238.21
Barrow Borough Council,Local Restrictions Support Grant (Closed) Addendum: 5 January onwards,Wholesale And Retail Trade; Repair Of Motor Vehicles And Motorcycles,10-Feb-21,LRSG_1941,Business Grant Recipient,"2,001.00"
Barrow Borough Council,Local Restrictions Support Grant (Closed) Addendum: Tier 4,Wholesale And Retail Trade; Repair Of Motor Vehicles And Motorcycles,10-Feb-21,LRSG_1942,Business Grant Recipient,238.21
Barrow Borough Council,Local Restrictions Support Grant (Closed) Addendum: 5 January onwards,Wholesale And Retail Trade; Repair Of Motor Vehicles And Motorcycles,10-Feb-21,LRSG_1943,Business Grant Recipient,"2,001.00"
Barrow Borough Council,Local Restrictions Support Grant (Closed) Addendum: Tier 4,Wholesale And Retail Trade; Repair Of Motor Vehicles And Motorcycles,10-Feb-21,LRSG_1944,Business Grant Recipient,238.21
Barrow Borough Council,Local Restrictions Support Grant (Closed) Addendum: 5 January onwards,Wholesale And Retail Trade; Repair Of Motor Vehicles And Motorcycles,10-Feb-21,LRSG_1945,Business Grant Recipient,"2,001.00"
Barrow Borough Council,Local Restrictions Support Grant (Closed)�Addendum�,Accommodation And Food Service Activities,11-Feb-21,LRSG_1946,L & J Restaurants LTD ,"1,334.00"
Barrow Borough Council,Local Restrictions Support Grant (Open)�,Accommodation And Food Service Activities,11-Feb-21,LRSG_1947,Business Grant Recipient,633.79
Barrow Borough Council,Closed Business Lockdown Payment,Wholesale And Retail Trade; Repair Of Motor Vehicles And Motorcycles,11-Feb-21,LRSG_1948,MBR Motorsports Ltd ,"4,000.00"
Barrow Borough Council,Closed Business Lockdown Payment,Wholesale And Retail Trade; Repair Of Motor Vehicles And Motorcycles,11-Feb-21,LRSG_1949,Business Grant Recipient,"4,000.00"
Barrow Borough Council,Closed Business Lockdown Payment,Wholesale And Retail Trade; Repair Of Motor Vehicles And Motorcycles,11-Feb-21,LRSG_1950,Business Grant Recipient,"4,000.00"
Barrow Borough Council,Closed Business Lockdown Payment,Wholesale And Retail Trade; Repair Of Motor Vehicles And Motorcycles,11-Feb-21,LRSG_1951,Business Grant Recipient,"4,000.00"
Barrow Borough Council,Closed Business Lockdown Payment,Accommodation And Food Service Activities,11-Feb-21,LRSG_1952,The Black Dog Inn,"4,000.00"
Barrow Borough Council,Closed Business Lockdown Payment,Accommodation And Food Service Activities,11-Feb-21,LRSG_1953,Business Grant Recipient,"4,000.00"
Barrow Borough Council,Closed Business Lockdown Payment,Accommodation And Food Service Activities,11-Feb-21,LRSG_1954,Business Grant Recipient,"4,000.00"
Barrow Borough Council,Closed Business Lockdown Payment,Accommodation And Food Service Activities,11-Feb-21,LRSG_1955,The Sun Inn,"9,000.00"
Barrow Borough Council,Closed Business Lockdown Payment,Accommodation And Food Service Activities,11-Feb-21,LRSG_1956,Business Grant Recipient,"4,000.00"
Barrow Borough Council,Local Restrictions Support Grant (Closed)�Addendum�,Wholesale And Retail Trade; Repair Of Motor Vehicles And Motorcycles,12-Feb-21,LRSG_1957,Business Grant Recipient,"1,334.00"
Barrow Borough Council,Local Restrictions Support Grant (Closed)�Addendum�,Wholesale And Retail Trade; Repair Of Motor Vehicles And Motorcycles,12-Feb-21,LRSG_1958, Home Images,"1,334.00"
Barrow Borough Council,Local Restrictions Support Grant (Closed)�Addendum�,Wholesale And Retail Trade; Repair Of Motor Vehicles And Motorcycles,12-Feb-21,LRSG_1959,Clean Wright ,"1,334.00"
Barrow Borough Council,Local Restrictions Support Grant (Closed)�Addendum�,Wholesale And Retail Trade; Repair Of Motor Vehicles And Motorcycles,12-Feb-21,LRSG_1960,Cancer Research UK,"2,000.00"
Barrow Borough Council,Local Restrictions Support Grant (Closed)�Addendum�,Wholesale And Retail Trade; Repair Of Motor Vehicles And Motorcycles,12-Feb-21,LRSG_1961,Odette hairdressers,"1,334.00"
Barrow Borough Council,Local Restrictions Support Grant (Closed)�Addendum�,Accommodation And Food Service Activities,12-Feb-21,LRSG_1962,The Craft Union Pub Company Limited T/A Wellington Hotel,"2,000.00"
Barrow Borough Council,Local Restrictions Support Grant (Closed)�Addendum�,Wholesale And Retail Trade; Repair Of Motor Vehicles And Motorcycles,12-Feb-21,LRSG_1963,The Works,"1,334.00"
Barrow Borough Council,Local Restrictions Support Grant (Closed)�Addendum�,Wholesale And Retail Trade; Repair Of Motor Vehicles And Motorcycles,12-Feb-21,LRSG_1964,Pine Designs,"1,334.00"
Barrow Borough Council,Local Restrictions Support Grant (Closed)�Addendum�,"Arts, Entertainment And Recreation",12-Feb-21,LRSG_1965,Buccleuch Village Hall,"1,334.00"
Barrow Borough Council,Local Restrictions Support Grant (Closed)�Addendum�,Accommodation And Food Service Activities,12-Feb-21,LRSG_1966,Mitchells & Butlers ,"3,000.00"
Barrow Borough Council,Local Restrictions Support Grant (Open)�,Accommodation And Food Service Activities,12-Feb-21,LRSG_1967,The Lodge (Accommodation) Ltd,967.36
Barrow Borough Council,Local Restrictions Support Grant (Closed) Addendum: Tier 4,Accommodation And Food Service Activities,12-Feb-21,LRSG_1968,The Lodge (Accommodation) Ltd,238.21
Barrow Borough Council,Local Restrictions Support Grant (Closed) Addendum: 5 January onwards,Accommodation And Food Service Activities,12-Feb-21,LRSG_1969,The Lodge (Accommodation) Ltd,"2,001.00"
Barrow Borough Council,Local Restrictions Support Grant (Closed)�,Accommodation And Food Service Activities,12-Feb-21,LRSG_1970,Specpride Limited,"1,381.64"
Barrow Borough Council,Local Restrictions Support Grant (Closed) Addendum: Tier 4,Accommodation And Food Service Activities,12-Feb-21,LRSG_1971,Business Grant Recipient,238.21
Barrow Borough Council,Local Restrictions Support Grant (Closed) Addendum: 5 January onwards,Accommodation And Food Service Activities,12-Feb-21,LRSG_1972,Business Grant Recipient,"2,001.00"
Barrow Borough Council,Local Restrictions Support Grant (Closed) Addendum: Tier 4,"Arts, Entertainment And Recreation",12-Feb-21,LRSG_1973,Askam rugby club,238.21
Barrow Borough Council,Local Restrictions Support Grant (Closed) Addendum: 5 January onwards,"Arts, Entertainment And Recreation",12-Feb-21,LRSG_1974,Askam rugby club,"2,001.00"
Barrow Borough Council,Local Restrictions Support Grant (Closed) Addendum: Tier 4,Other Service Activities,12-Feb-21,LRSG_1975,Headstart ,238.21
Barrow Borough Council,Local Restrictions Support Grant (Closed) Addendum: 5 January onwards,Other Service Activities,12-Feb-21,LRSG_1976,Headstart,"2,001.00"
Barrow Borough Council,Local Restrictions Support Grant (Closed) Addendum: Tier 4,Wholesale And Retail Trade; Repair Of Motor Vehicles And Motorcycles,12-Feb-21,LRSG_1977, JayJays Electricals,238.21
Barrow Borough Council,Local Restrictions Support Grant (Closed) Addendum: 5 January onwards,Wholesale And Retail Trade; Repair Of Motor Vehicles And Motorcycles,12-Feb-21,LRSG_1978,JayJays Electricals,"2,001.00"
Barrow Borough Council,Local Restrictions Support Grant (Closed) Addendum: Tier 4,Wholesale And Retail Trade; Repair Of Motor Vehicles And Motorcycles,12-Feb-21,LRSG_1979,Ryman Limited,357.14
Barrow Borough Council,Local Restrictions Support Grant (Closed) Addendum: 5 January onwards,Wholesale And Retail Trade; Repair Of Motor Vehicles And Motorcycles,12-Feb-21,LRSG_1980,Ryman Limited,"3,000.00"
Barrow Borough Council,Local Restrictions Support Grant (Closed)�,Accommodation And Food Service Activities,15-Feb-21,LRSG_1981,Business Grant Recipient,"2,071.43"
Barrow Borough Council,Local Restrictions Support Grant (Closed) Addendum: Tier 4,Accommodation And Food Service Activities,15-Feb-21,LRSG_1982,Business Grant Recipient,357.14
Barrow Borough Council,Local Restrictions Support Grant (Closed) Addendum: 5 January onwards,Accommodation And Food Service Activities,15-Feb-21,LRSG_1983,Business Grant Recipient,"3,000.00"
Barrow Borough Council,Local Restrictions Support Grant (Closed) Addendum: Tier 4,Wholesale And Retail Trade; Repair Of Motor Vehicles And Motorcycles,15-Feb-21,LRSG_1984,Business Grant Recipient,238.21
Barrow Borough Council,Local Restrictions Support Grant (Closed) Addendum: 5 January onwards,Wholesale And Retail Trade; Repair Of Motor Vehicles And Motorcycles,15-Feb-21,LRSG_1985,Business Grant Recipient,"2,001.00"
Barrow Borough Council,Local Restrictions Support Grant (Closed) Addendum: Tier 4,"Arts, Entertainment And Recreation",15-Feb-21,LRSG_1986,Walney Island FC ,238.21
Barrow Borough Council,Local Restrictions Support Grant (Closed) Addendum: 5 January onwards,"Arts, Entertainment And Recreation",15-Feb-21,LRSG_1987,Walney Island FC ,"2,001.00"
Barrow Borough Council,Local Restrictions Support Grant (Closed) Addendum: Tier 4,Wholesale And Retail Trade; Repair Of Motor Vehicles And Motorcycles,15-Feb-21,LRSG_1988,Business Grant Recipient,238.21
Barrow Borough Council,Local Restrictions Support Grant (Closed) Addendum: 5 January onwards,Wholesale And Retail Trade; Repair Of Motor Vehicles And Motorcycles,15-Feb-21,LRSG_1989,Business Grant Recipient,"2,001.00"
Barrow Borough Council,Local Restrictions Support Grant (Closed) Addendum: Tier 4,Wholesale And Retail Trade; Repair Of Motor Vehicles And Motorcycles,15-Feb-21,LRSG_1990,Phone Gadgets 4U Ltd,238.21
Barrow Borough Council,Local Restrictions Support Grant (Closed) Addendum: 5 January onwards,Wholesale And Retail Trade; Repair Of Motor Vehicles And Motorcycles,15-Feb-21,LRSG_1991,Phone Gadgets 4U Ltd,"2,001.00"
Barrow Borough Council,Local Restrictions Support Grant (Closed) Addendum: Tier 4,Wholesale And Retail Trade; Repair Of Motor Vehicles And Motorcycles,15-Feb-21,LRSG_1992,Angling and Hiking Centre,238.21
Barrow Borough Council,Local Restrictions Support Grant (Closed) Addendum: 5 January onwards,Wholesale And Retail Trade; Repair Of Motor Vehicles And Motorcycles,15-Feb-21,LRSG_1993,Angling and Hiking Centre,"2,001.00"
Barrow Borough Council,Local Restrictions Support Grant (Closed) Addendum: Tier 4,Accommodation And Food Service Activities,15-Feb-21,LRSG_1994,Business Grant Recipient,238.21
Barrow Borough Council,Local Restrictions Support Grant (Closed) Addendum: 5 January onwards,Accommodation And Food Service Activities,15-Feb-21,LRSG_1995,Business Grant Recipient,"2,001.00"
Barrow Borough Council,Local Restrictions Support Grant (Closed) Addendum: Tier 4,Wholesale And Retail Trade; Repair Of Motor Vehicles And Motorcycles,15-Feb-21,LRSG_1996, Glo Tanning Salon,238.21
Barrow Borough Council,Local Restrictions Support Grant (Closed) Addendum: 5 January onwards,Wholesale And Retail Trade; Repair Of Motor Vehicles And Motorcycles,15-Feb-21,LRSG_1997,Glo Tanning Salon,"2,001.00"
Barrow Borough Council,Local Restrictions Support Grant (Closed) Addendum: Tier 4,Wholesale And Retail Trade; Repair Of Motor Vehicles And Motorcycles,15-Feb-21,LRSG_1998,Business Grant Recipient,238.21
Barrow Borough Council,Local Restrictions Support Grant (Closed) Addendum: 5 January onwards,Wholesale And Retail Trade; Repair Of Motor Vehicles And Motorcycles,15-Feb-21,LRSG_1999,Business Grant Recipient,"2,001.00"
Barrow Borough Council,Local Restrictions Support Grant (Closed) Addendum: Tier 4,Wholesale And Retail Trade; Repair Of Motor Vehicles And Motorcycles,15-Feb-21,LRSG_2000, Clean Wright ,238.21
Barrow Borough Council,Local Restrictions Support Grant (Closed) Addendum: 5 January onwards,Wholesale And Retail Trade; Repair Of Motor Vehicles And Motorcycles,15-Feb-21,LRSG_2001,Clean Wright ,"2,001.00"
Barrow Borough Council,Local Restrictions Support Grant (Closed) Addendum: Tier 4,Accommodation And Food Service Activities,15-Feb-21,LRSG_2002,The Craft Union Pub Company Limited T/A Wellington Hotel,357.14
Barrow Borough Council,Local Restrictions Support Grant (Closed) Addendum: 5 January onwards,Accommodation And Food Service Activities,15-Feb-21,LRSG_2003,The Craft Union Pub Company Limited T/A Wellington Hotel,"3,000.00"
Barrow Borough Council,Local Restrictions Support Grant (Closed) Addendum: Tier 4,Wholesale And Retail Trade; Repair Of Motor Vehicles And Motorcycles,15-Feb-21,LRSG_2004, Pine Designs,238.21
Barrow Borough Council,Local Restrictions Support Grant (Closed) Addendum: 5 January onwards,Wholesale And Retail Trade; Repair Of Motor Vehicles And Motorcycles,15-Feb-21,LRSG_2005,Pine Designs,"2,001.00"
Barrow Borough Council,Local Restrictions Support Grant (Closed) Addendum: Tier 4,Wholesale And Retail Trade; Repair Of Motor Vehicles And Motorcycles,15-Feb-21,LRSG_2006,Business Grant Recipient,238.21
Barrow Borough Council,Local Restrictions Support Grant (Closed) Addendum: 5 January onwards,Wholesale And Retail Trade; Repair Of Motor Vehicles And Motorcycles,15-Feb-21,LRSG_2007,Business Grant Recipient,"2,001.00"
Barrow Borough Council,Local Restrictions Support Grant (Closed) Addendum: Tier 4,Accommodation And Food Service Activities,15-Feb-21,LRSG_2008,L & J Restaurants LTD,238.21
Barrow Borough Council,Local Restrictions Support Grant (Closed) Addendum: 5 January onwards,Accommodation And Food Service Activities,15-Feb-21,LRSG_2009,L & J Restaurants LTD,"2,001.00"
Barrow Borough Council,Local Restrictions Support Grant (Closed) Addendum: Tier 4,"Arts, Entertainment And Recreation",15-Feb-21,LRSG_2010,Buccleuch Village Hall,238.21
Barrow Borough Council,Local Restrictions Support Grant (Closed) Addendum: 5 January onwards,"Arts, Entertainment And Recreation",15-Feb-21,LRSG_2011,Buccleuch Village Hall,"2,001.00"
Barrow Borough Council,Local Restrictions Support Grant (Closed) Addendum: Tier 4,Wholesale And Retail Trade; Repair Of Motor Vehicles And Motorcycles,15-Feb-21,LRSG_2012,GR & MM Blackledge PLC,357.14
Barrow Borough Council,Local Restrictions Support Grant (Closed) Addendum: 5 January onwards,Wholesale And Retail Trade; Repair Of Motor Vehicles And Motorcycles,15-Feb-21,LRSG_2013,GR & MM Blackledge PLC,"3,000.00"
Barrow Borough Council,Christmas Support Payment for �wet-led pubs� (CSP),Accommodation And Food Service Activities,16-Feb-21,LRSG_2014,Business Grant Recipient,"1,000.00"
Barrow Borough Council,Local Restrictions Support Grant (Closed)�Addendum�,Wholesale And Retail Trade; Repair Of Motor Vehicles And Motorcycles,16-Feb-21,LRSG_2015,Global Education Trust,"2,000.00"
Barrow Borough Council,Local Restrictions Support Grant (Closed)�Addendum�,"Arts, Entertainment And Recreation",16-Feb-21,LRSG_2016,Barrow Celtic Fc,"1,334.00"
Barrow Borough Council,Local Restrictions Support Grant (Closed)�Addendum�,"Arts, Entertainment And Recreation",16-Feb-21,LRSG_2017,Dalton Communty Association,"1,334.00"
Barrow Borough Council,Local Restrictions Support Grant (Closed)�Addendum�,"Arts, Entertainment And Recreation",16-Feb-21,LRSG_2018,North Scale Residents Association,"1,334.00"
Barrow Borough Council,Local Restrictions Support Grant (Closed)�Addendum�,"Arts, Entertainment And Recreation",16-Feb-21,LRSG_2019,Walney Park Crown Green Bowling Club,"1,334.00"
Barrow Borough Council,Local Restrictions Support Grant (Closed)�Addendum�,"Arts, Entertainment And Recreation",16-Feb-21,LRSG_2020,Dalton RLFC,"1,334.00"
Barrow Borough Council,Local Restrictions Support Grant (Closed)�Addendum�,"Arts, Entertainment And Recreation",16-Feb-21,LRSG_2021,Dalton Girl Guide Association,"1,334.00"
Barrow Borough Council,Local Restrictions Support Grant (Closed)�Addendum�,Wholesale And Retail Trade; Repair Of Motor Vehicles And Motorcycles,16-Feb-21,LRSG_2022,T&J Photographic,"1,334.00"
Barrow Borough Council,Local Restrictions Support Grant (Closed)�Addendum�,Accommodation And Food Service Activities,16-Feb-21,LRSG_2023,Trustees of Biggar bank Caravan Association T/A Salt Marsh Caravan Park,"1,334.00"
Barrow Borough Council,Local Restrictions Support Grant (Closed)�Addendum�,Wholesale And Retail Trade; Repair Of Motor Vehicles And Motorcycles,16-Feb-21,LRSG_2024,Business Grant Recipient,"1,334.00"
Barrow Borough Council,Local Restrictions Support Grant (Open)�,Accommodation And Food Service Activities,16-Feb-21,LRSG_2025,Trustees of Biggar bank Caravan Association T/A Salt Marsh Caravan Park,633.79
Barrow Borough Council,Local Restrictions Support Grant (Open)�,Accommodation And Food Service Activities,17-Feb-21,LRSG_2026,Walney Island South End Caravan Site Ltd T/A King Alfred Hotel,"1,450.00"
Barrow Borough Council,Local Restrictions Support Grant (Closed) Addendum: Tier 4,Accommodation And Food Service Activities,17-Feb-21,LRSG_2027,Walney Island South End Caravan Site Ltd T/A King Alfred Hotel,357.14
Barrow Borough Council,Local Restrictions Support Grant (Closed) Addendum: 5 January onwards,Accommodation And Food Service Activities,17-Feb-21,LRSG_2028,Walney Island South End Caravan Site Ltd T/A King Alfred Hotel,"3,000.00"
Barrow Borough Council,Local Restrictions Support Grant (Open)�,Accommodation And Food Service Activities,17-Feb-21,LRSG_2029,Aquaflo proerty,967.36
Barrow Borough Council,Local Restrictions Support Grant (Closed) Addendum: Tier 4,Accommodation And Food Service Activities,17-Feb-21,LRSG_2030,Aquaflo proerty,238.21
Barrow Borough Council,Local Restrictions Support Grant (Closed) Addendum: 5 January onwards,Accommodation And Food Service Activities,17-Feb-21,LRSG_2031,Aquaflo proerty,"2,001.00"
Barrow Borough Council,Local Restrictions Support Grant (Closed) Addendum: Tier 4,Wholesale And Retail Trade; Repair Of Motor Vehicles And Motorcycles,17-Feb-21,LRSG_2032,Global Education Trust,357.14
Barrow Borough Council,Local Restrictions Support Grant (Closed) Addendum: 5 January onwards,Wholesale And Retail Trade; Repair Of Motor Vehicles And Motorcycles,17-Feb-21,LRSG_2033,Global Education Trust,"3,000.00"
Barrow Borough Council,Local Restrictions Support Grant (Closed) Addendum: Tier 4,Wholesale And Retail Trade; Repair Of Motor Vehicles And Motorcycles,17-Feb-21,LRSG_2034,T&J Photographic,238.21
Barrow Borough Council,Local Restrictions Support Grant (Closed) Addendum: 5 January onwards,Wholesale And Retail Trade; Repair Of Motor Vehicles And Motorcycles,17-Feb-21,LRSG_2035,T&J Photographic,"2,001.00"
Barrow Borough Council,Local Restrictions Support Grant (Closed) Addendum: Tier 4,"Arts, Entertainment And Recreation",17-Feb-21,LRSG_2036,North Scale Residents Association,238.21
Barrow Borough Council,Local Restrictions Support Grant (Closed) Addendum: 5 January onwards,"Arts, Entertainment And Recreation",17-Feb-21,LRSG_2037,North Scale Residents Association,"2,001.00"
Barrow Borough Council,Local Restrictions Support Grant (Closed) Addendum: Tier 4,"Arts, Entertainment And Recreation",17-Feb-21,LRSG_2038,Dalton Communty Association,238.21
Barrow Borough Council,Local Restrictions Support Grant (Closed) Addendum: 5 January onwards,"Arts, Entertainment And Recreation",17-Feb-21,LRSG_2039,Dalton Communty Association,"2,001.00"
Barrow Borough Council,Local Restrictions Support Grant (Closed) Addendum: Tier 4,"Arts, Entertainment And Recreation",17-Feb-21,LRSG_2040,Barrow Celtic Fc,238.21
Barrow Borough Council,Local Restrictions Support Grant (Closed) Addendum: 5 January onwards,"Arts, Entertainment And Recreation",17-Feb-21,LRSG_2041,Barrow Celtic Fc,"2,001.00"
Barrow Borough Council,Local Restrictions Support Grant (Closed) Addendum: Tier 4,Wholesale And Retail Trade; Repair Of Motor Vehicles And Motorcycles,17-Feb-21,LRSG_2042,Business Grant Recipient,238.21
Barrow Borough Council,Local Restrictions Support Grant (Closed) Addendum: 5 January onwards,Wholesale And Retail Trade; Repair Of Motor Vehicles And Motorcycles,17-Feb-21,LRSG_2043,Business Grant Recipient,"2,001.00"
Barrow Borough Council,Local Restrictions Support Grant (Closed) Addendum: Tier 4,Wholesale And Retail Trade; Repair Of Motor Vehicles And Motorcycles,17-Feb-21,LRSG_2044,Anthony Wright Portrait Studio,238.21
Barrow Borough Council,Local Restrictions Support Grant (Closed) Addendum: 5 January onwards,Wholesale And Retail Trade; Repair Of Motor Vehicles And Motorcycles,17-Feb-21,LRSG_2045,Anthony Wright Portrait Studio,"2,001.00"
Barrow Borough Council,Local Restrictions Support Grant (Closed) Addendum: Tier 4,Wholesale And Retail Trade; Repair Of Motor Vehicles And Motorcycles,17-Feb-21,LRSG_2046,Whitley Hall LTD T/A Cex,238.21
Barrow Borough Council,Local Restrictions Support Grant (Closed) Addendum: 5 January onwards,Wholesale And Retail Trade; Repair Of Motor Vehicles And Motorcycles,17-Feb-21,LRSG_2047,Whitley Hall LTD T/A Cex,"2,001.00"
Barrow Borough Council,Local Restrictions Support Grant (Closed) Addendum: Tier 4,Wholesale And Retail Trade; Repair Of Motor Vehicles And Motorcycles,17-Feb-21,LRSG_2048,Max Spielmann Ltd,357.14
Barrow Borough Council,Local Restrictions Support Grant (Closed) Addendum: 5 January onwards,Wholesale And Retail Trade; Repair Of Motor Vehicles And Motorcycles,17-Feb-21,LRSG_2049,Max Spielmann Ltd,"3,000.00"
Barrow Borough Council,Local Restrictions Support Grant (Closed) Addendum: Tier 4,Wholesale And Retail Trade; Repair Of Motor Vehicles And Motorcycles,17-Feb-21,LRSG_2050,Business Grant Recipient,238.21
Barrow Borough Council,Local Restrictions Support Grant (Closed) Addendum: 5 January onwards,Wholesale And Retail Trade; Repair Of Motor Vehicles And Motorcycles,17-Feb-21,LRSG_2051,Business Grant Recipient,"2,001.00"
Barrow Borough Council,Local Restrictions Support Grant (Closed) Addendum: Tier 4,Wholesale And Retail Trade; Repair Of Motor Vehicles And Motorcycles,17-Feb-21,LRSG_2052,Business Grant Recipient,238.21
Barrow Borough Council,Local Restrictions Support Grant (Closed) Addendum: 5 January onwards,Wholesale And Retail Trade; Repair Of Motor Vehicles And Motorcycles,17-Feb-21,LRSG_2053,Business Grant Recipient,"2,001.00"
Barrow Borough Council,Local Restrictions Support Grant (Closed)�Addendum�,"Arts, Entertainment And Recreation",17-Feb-21,LRSG_2054,Barrow ABC Brook St Gym,"1,334.00"
Barrow Borough Council,Local Restrictions Support Grant (Closed)�Addendum�,Wholesale And Retail Trade; Repair Of Motor Vehicles And Motorcycles,17-Feb-21,LRSG_2055,Andersons (Denton Holme)  Limited,"2,000.00"
Barrow Borough Council,Local Restrictions Support Grant (Closed)�Addendum�,Wholesale And Retail Trade; Repair Of Motor Vehicles And Motorcycles,17-Feb-21,LRSG_2056,Indentityco Limited,"2,000.00"
Barrow Borough Council,Local Restrictions Support Grant (Closed)�Addendum�,"Arts, Entertainment And Recreation",17-Feb-21,LRSG_2057,Hawcoat & Ormsgill Memorial Hall,"1,334.00"
Barrow Borough Council,Local Restrictions Support Grant (Closed)�Addendum�,Accommodation And Food Service Activities,17-Feb-21,LRSG_2058,Walney Island South End Caravan Site Ltd T/A King Alfred Hotel,"2,000.00"
Barrow Borough Council,Local Restrictions Support Grant (Closed)�Addendum�,Wholesale And Retail Trade; Repair Of Motor Vehicles And Motorcycles,17-Feb-21,LRSG_2059,Hays Travel Ltd,"1,334.00"
Barrow Borough Council,Local Restrictions Support Grant (Open)�,Accommodation And Food Service Activities,17-Feb-21,LRSG_2060, Aquaflo proerty,633.79
Barrow Borough Council,Closed Business Lockdown Payment,Accommodation And Food Service Activities,18-Feb-21,LRSG_2061,Business Grant Recipient,"4,000.00"
Barrow Borough Council,Closed Business Lockdown Payment,"Arts, Entertainment And Recreation",18-Feb-21,LRSG_2062,Askam rugby club,"4,000.00"
Barrow Borough Council,Closed Business Lockdown Payment,Other Service Activities,18-Feb-21,LRSG_2063,Headstart,"4,000.00"
Barrow Borough Council,Closed Business Lockdown Payment,Wholesale And Retail Trade; Repair Of Motor Vehicles And Motorcycles,18-Feb-21,LRSG_2064, JayJays Electricals,"4,000.00"
Barrow Borough Council,Closed Business Lockdown Payment,Wholesale And Retail Trade; Repair Of Motor Vehicles And Motorcycles,18-Feb-21,LRSG_2065,Ryman Limited,"6,000.00"
Barrow Borough Council,Closed Business Lockdown Payment,Wholesale And Retail Trade; Repair Of Motor Vehicles And Motorcycles,18-Feb-21,LRSG_2066,Business Grant Recipient,"4,000.00"
Barrow Borough Council,Closed Business Lockdown Payment,"Arts, Entertainment And Recreation",18-Feb-21,LRSG_2067,Walney Island FC ,"4,000.00"
Barrow Borough Council,Closed Business Lockdown Payment,Wholesale And Retail Trade; Repair Of Motor Vehicles And Motorcycles,18-Feb-21,LRSG_2068,Business Grant Recipient,"4,000.00"
Barrow Borough Council,Closed Business Lockdown Payment,Wholesale And Retail Trade; Repair Of Motor Vehicles And Motorcycles,18-Feb-21,LRSG_2069,Phone Gadgets 4U Ltd,"4,000.00"
Barrow Borough Council,Closed Business Lockdown Payment,Wholesale And Retail Trade; Repair Of Motor Vehicles And Motorcycles,18-Feb-21,LRSG_2070,Angling and Hiking Centre,"4,000.00"
Barrow Borough Council,Closed Business Lockdown Payment,Accommodation And Food Service Activities,18-Feb-21,LRSG_2071,Business Grant Recipient,"4,000.00"
Barrow Borough Council,Closed Business Lockdown Payment,Wholesale And Retail Trade; Repair Of Motor Vehicles And Motorcycles,18-Feb-21,LRSG_2072,Glo Tanning Salon,"4,000.00"
Barrow Borough Council,Closed Business Lockdown Payment,Wholesale And Retail Trade; Repair Of Motor Vehicles And Motorcycles,18-Feb-21,LRSG_2073,Business Grant Recipient,"4,000.00"
Barrow Borough Council,Closed Business Lockdown Payment,Wholesale And Retail Trade; Repair Of Motor Vehicles And Motorcycles,18-Feb-21,LRSG_2074, Clean Wright ,"4,000.00"
Barrow Borough Council,Closed Business Lockdown Payment,Accommodation And Food Service Activities,18-Feb-21,LRSG_2075,The Craft Union Pub Company Limited T/A Wellington Hotel,"6,000.00"
Barrow Borough Council,Closed Business Lockdown Payment,Wholesale And Retail Trade; Repair Of Motor Vehicles And Motorcycles,18-Feb-21,LRSG_2076,Pine Designs,"4,000.00"
Barrow Borough Council,Closed Business Lockdown Payment,Wholesale And Retail Trade; Repair Of Motor Vehicles And Motorcycles,18-Feb-21,LRSG_2077,Business Grant Recipient,"4,000.00"
Barrow Borough Council,Closed Business Lockdown Payment,Accommodation And Food Service Activities,18-Feb-21,LRSG_2078,L & J Restaurants LTD ,"4,000.00"
Barrow Borough Council,Closed Business Lockdown Payment,"Arts, Entertainment And Recreation",18-Feb-21,LRSG_2079,Buccleuch Village Hall,"4,000.00"
Barrow Borough Council,Closed Business Lockdown Payment,Wholesale And Retail Trade; Repair Of Motor Vehicles And Motorcycles,18-Feb-21,LRSG_2080,GR & MM Blackledge PLC,"6,000.00"
Barrow Borough Council,Closed Business Lockdown Payment,Wholesale And Retail Trade; Repair Of Motor Vehicles And Motorcycles,18-Feb-21,LRSG_2081,Global Education Trust,"6,000.00"
Barrow Borough Council,Closed Business Lockdown Payment,Wholesale And Retail Trade; Repair Of Motor Vehicles And Motorcycles,18-Feb-21,LRSG_2082,T&J Photographic,"4,000.00"
Barrow Borough Council,Closed Business Lockdown Payment,"Arts, Entertainment And Recreation",18-Feb-21,LRSG_2083,North Scale Residents Association,"4,000.00"
Barrow Borough Council,Closed Business Lockdown Payment,"Arts, Entertainment And Recreation",18-Feb-21,LRSG_2084,Dalton Communty Association,"4,000.00"
Barrow Borough Council,Closed Business Lockdown Payment,"Arts, Entertainment And Recreation",18-Feb-21,LRSG_2085,Barrow Celtic Fc,"4,000.00"
Barrow Borough Council,Closed Business Lockdown Payment,Wholesale And Retail Trade; Repair Of Motor Vehicles And Motorcycles,18-Feb-21,LRSG_2086,Business Grant Recipient,"4,000.00"
Barrow Borough Council,Closed Business Lockdown Payment,Wholesale And Retail Trade; Repair Of Motor Vehicles And Motorcycles,18-Feb-21,LRSG_2087,Anthony Wright Portrait Studio,"4,000.00"
Barrow Borough Council,Closed Business Lockdown Payment,Wholesale And Retail Trade; Repair Of Motor Vehicles And Motorcycles,18-Feb-21,LRSG_2088,Whitley Hall LTD T/A Cex,"4,000.00"
Barrow Borough Council,Closed Business Lockdown Payment,Wholesale And Retail Trade; Repair Of Motor Vehicles And Motorcycles,18-Feb-21,LRSG_2089,Max Spielmann Ltd,"6,000.00"
Barrow Borough Council,Closed Business Lockdown Payment,Wholesale And Retail Trade; Repair Of Motor Vehicles And Motorcycles,18-Feb-21,LRSG_2090,Business Grant Recipient,"4,000.00"
Barrow Borough Council,Closed Business Lockdown Payment,Wholesale And Retail Trade; Repair Of Motor Vehicles And Motorcycles,18-Feb-21,LRSG_2091,Business Grant Recipient,"4,000.00"
Barrow Borough Council,Closed Business Lockdown Payment,Accommodation And Food Service Activities,18-Feb-21,LRSG_2092,Business Grant Recipient,"6,000.00"
Barrow Borough Council,Closed Business Lockdown Payment,Accommodation And Food Service Activities,18-Feb-21,LRSG_2093,The Lodge (Accommodation) Ltd,"4,000.00"
Barrow Borough Council,Closed Business Lockdown Payment,Accommodation And Food Service Activities,18-Feb-21,LRSG_2094,Walney Island South End Caravan Site Ltd T/A King Alfred Hotel,"6,000.00"
Barrow Borough Council,Closed Business Lockdown Payment,Accommodation And Food Service Activities,18-Feb-21,LRSG_2095,Aquaflo proerty,"4,000.00"
Barrow Borough Council,Local Restrictions Support Grant (Open)�,Accommodation And Food Service Activities,19-Feb-21,LRSG_2096,Business Grant Recipient,967.36
Barrow Borough Council,Local Restrictions Support Grant (Open)�,Accommodation And Food Service Activities,19-Feb-21,LRSG_2097, Aquaflo proerty,967.36
Barrow Borough Council,Local Restrictions Support Grant (Closed) Addendum: Tier 4,Accommodation And Food Service Activities,19-Feb-21,LRSG_2098, Aquaflo proerty,238.21
Barrow Borough Council,Local Restrictions Support Grant (Closed) Addendum: 5 January onwards,Accommodation And Food Service Activities,19-Feb-21,LRSG_2099, Aquaflo proerty,"2,001.00"
Barrow Borough Council,Local Restrictions Support Grant (Closed)�,Accommodation And Food Service Activities,19-Feb-21,LRSG_2100,Vantage Leisure LTD,"1,381.64"
Barrow Borough Council,Local Restrictions Support Grant (Closed) Addendum: Tier 4,Accommodation And Food Service Activities,19-Feb-21,LRSG_2101,Vantage Leisure LTD,238.21
Barrow Borough Council,Local Restrictions Support Grant (Closed) Addendum: 5 January onwards,Accommodation And Food Service Activities,19-Feb-21,LRSG_2102,Vantage Leisure LTD,"2,001.00"
Barrow Borough Council,Local Restrictions Support Grant (Closed) Addendum: Tier 4,"Arts, Entertainment And Recreation",19-Feb-21,LRSG_2103,Dalton RLFC,238.21
Barrow Borough Council,Local Restrictions Support Grant (Closed) Addendum: 5 January onwards,"Arts, Entertainment And Recreation",19-Feb-21,LRSG_2104,Dalton RLFC,"2,001.00"
Barrow Borough Council,Local Restrictions Support Grant (Closed) Addendum: Tier 4,"Arts, Entertainment And Recreation",19-Feb-21,LRSG_2105,Dalton Girl Guide Association,238.21
Barrow Borough Council,Local Restrictions Support Grant (Closed) Addendum: 5 January onwards,"Arts, Entertainment And Recreation",19-Feb-21,LRSG_2106,Dalton Girl Guide Association,"2,001.00"
Barrow Borough Council,Local Restrictions Support Grant (Closed) Addendum: Tier 4,Wholesale And Retail Trade; Repair Of Motor Vehicles And Motorcycles,19-Feb-21,LRSG_2107,Business Grant Recipient,238.21
Barrow Borough Council,Local Restrictions Support Grant (Closed) Addendum: 5 January onwards,Wholesale And Retail Trade; Repair Of Motor Vehicles And Motorcycles,19-Feb-21,LRSG_2108,Business Grant Recipient,"2,001.00"
Barrow Borough Council,Local Restrictions Support Grant (Closed) Addendum: Tier 4,Wholesale And Retail Trade; Repair Of Motor Vehicles And Motorcycles,19-Feb-21,LRSG_2109,Astra Print,238.21
Barrow Borough Council,Local Restrictions Support Grant (Closed) Addendum: 5 January onwards,Wholesale And Retail Trade; Repair Of Motor Vehicles And Motorcycles,19-Feb-21,LRSG_2110,Astra Print,"2,001.00"
Barrow Borough Council,Local Restrictions Support Grant (Closed) Addendum: Tier 4,"Arts, Entertainment And Recreation",19-Feb-21,LRSG_2111,Walney Park Crown Green Bowling Club,238.21
Barrow Borough Council,Local Restrictions Support Grant (Closed) Addendum: 5 January onwards,"Arts, Entertainment And Recreation",19-Feb-21,LRSG_2112,Walney Park Crown Green Bowling Club,"2,001.00"
Barrow Borough Council,Local Restrictions Support Grant (Closed) Addendum: Tier 4,Wholesale And Retail Trade; Repair Of Motor Vehicles And Motorcycles,19-Feb-21,LRSG_2113,Furness Heating Components Ltd,357.14
Barrow Borough Council,Local Restrictions Support Grant (Closed) Addendum: 5 January onwards,Wholesale And Retail Trade; Repair Of Motor Vehicles And Motorcycles,19-Feb-21,LRSG_2114,Furness Heating Components Ltd,"3,000.00"
Barrow Borough Council,Local Restrictions Support Grant (Closed) Addendum: Tier 4,Accommodation And Food Service Activities,19-Feb-21,LRSG_2115,Walney Community Trust,238.21
Barrow Borough Council,Local Restrictions Support Grant (Closed) Addendum: 5 January onwards,Accommodation And Food Service Activities,19-Feb-21,LRSG_2116,Walney Community Trust,"2,001.00"
Barrow Borough Council,Local Restrictions Support Grant (Closed) Addendum: Tier 4,Wholesale And Retail Trade; Repair Of Motor Vehicles And Motorcycles,19-Feb-21,LRSG_2117,The Salon,238.21
Barrow Borough Council,Local Restrictions Support Grant (Closed) Addendum: 5 January onwards,Wholesale And Retail Trade; Repair Of Motor Vehicles And Motorcycles,19-Feb-21,LRSG_2118,The Salon,"2,001.00"
Barrow Borough Council,Local Restrictions Support Grant (Closed) Addendum: Tier 4,Wholesale And Retail Trade; Repair Of Motor Vehicles And Motorcycles,19-Feb-21,LRSG_2119,D Stoker Group Ltd,535.71
Barrow Borough Council,Local Restrictions Support Grant (Closed) Addendum: 5 January onwards,Wholesale And Retail Trade; Repair Of Motor Vehicles And Motorcycles,19-Feb-21,LRSG_2120,D Stoker Group Ltd,"4,500.00"
Barrow Borough Council,Local Restrictions Support Grant (Closed) Addendum: Tier 4,"Arts, Entertainment And Recreation",19-Feb-21,LRSG_2121,King Alfred Bowling Club,238.21
Barrow Borough Council,Local Restrictions Support Grant (Closed) Addendum: 5 January onwards,"Arts, Entertainment And Recreation",19-Feb-21,LRSG_2122,King Alfred Bowling Club,"2,001.00"
Barrow Borough Council,Local Restrictions Support Grant (Closed) Addendum: Tier 4,Wholesale And Retail Trade; Repair Of Motor Vehicles And Motorcycles,19-Feb-21,LRSG_2123,The Sofa Group TSG Cumbria,357.14
Barrow Borough Council,Local Restrictions Support Grant (Closed) Addendum: 5 January onwards,Wholesale And Retail Trade; Repair Of Motor Vehicles And Motorcycles,19-Feb-21,LRSG_2124,The Sofa Group TSG Cumbria,"3,000.00"
Barrow Borough Council,Local Restrictions Support Grant (Closed) Addendum: Tier 4,Wholesale And Retail Trade; Repair Of Motor Vehicles And Motorcycles,19-Feb-21,LRSG_2125,Business Grant Recipient,238.21
Barrow Borough Council,Local Restrictions Support Grant (Closed) Addendum: 5 January onwards,Wholesale And Retail Trade; Repair Of Motor Vehicles And Motorcycles,19-Feb-21,LRSG_2126,Business Grant Recipient,"2,001.00"
Barrow Borough Council,Local Restrictions Support Grant (Closed) Addendum: Tier 4,"Arts, Entertainment And Recreation",19-Feb-21,LRSG_2127,Furness health studio ,238.21
Barrow Borough Council,Local Restrictions Support Grant (Closed) Addendum: 5 January onwards,"Arts, Entertainment And Recreation",19-Feb-21,LRSG_2128,Furness health studio ,"2,001.00"
Barrow Borough Council,Local Restrictions Support Grant (Closed) Addendum: Tier 4,Wholesale And Retail Trade; Repair Of Motor Vehicles And Motorcycles,19-Feb-21,LRSG_2129, Unicut ,238.21
Barrow Borough Council,Local Restrictions Support Grant (Closed) Addendum: 5 January onwards,Wholesale And Retail Trade; Repair Of Motor Vehicles And Motorcycles,19-Feb-21,LRSG_2130,Unicut ,"2,001.00"
Barrow Borough Council,Local Restrictions Support Grant (Closed)�Addendum�,Wholesale And Retail Trade; Repair Of Motor Vehicles And Motorcycles,19-Feb-21,LRSG_2131,Bensons for beds Retail ltd,"3,000.00"
Barrow Borough Council,Local Restrictions Support Grant (Closed)�Addendum�,Accommodation And Food Service Activities,19-Feb-21,LRSG_2132, Aquaflo proerty,"1,334.00"
Barrow Borough Council,Local Restrictions Support Grant (Closed)�Addendum�,Accommodation And Food Service Activities,19-Feb-21,LRSG_2133,Aquaflo proerty,"1,334.00"
Barrow Borough Council,Local Restrictions Support Grant (Closed)�Addendum�,"Arts, Entertainment And Recreation",19-Feb-21,LRSG_2134,Barrow Wanderers FC,"1,334.00"
Barrow Borough Council,Local Restrictions Support Grant (Open)�,Accommodation And Food Service Activities,19-Feb-21,LRSG_2135,The lodge,633.79
Barrow Borough Council,Local Restrictions Support Grant (Closed)�Addendum�,"Arts, Entertainment And Recreation",23-Feb-21,LRSG_2136,Newton village hall,"1,334.00"
Barrow Borough Council,Local Restrictions Support Grant (Closed)�Addendum�,Wholesale And Retail Trade; Repair Of Motor Vehicles And Motorcycles,23-Feb-21,LRSG_2137,JD Motors Barrow Ltd,"1,334.00"
Barrow Borough Council,Local Restrictions Support Grant (Closed)�Addendum�,Wholesale And Retail Trade; Repair Of Motor Vehicles And Motorcycles,23-Feb-21,LRSG_2138, Exposed,"1,334.00"
Barrow Borough Council,Local Restrictions Support Grant (Closed)�Addendum�,"Arts, Entertainment And Recreation",23-Feb-21,LRSG_2139,Furness Homeless Support group,"1,334.00"
Barrow Borough Council,Local Restrictions Support Grant (Closed)�Addendum�,"Arts, Entertainment And Recreation",23-Feb-21,LRSG_2140,Furness Homeless Support group,"1,334.00"
Barrow Borough Council,Local Restrictions Support Grant (Closed)�Addendum�,Wholesale And Retail Trade; Repair Of Motor Vehicles And Motorcycles,23-Feb-21,LRSG_2141, Cheeky Fun Ltd,"1,334.00"
Barrow Borough Council,Local Restrictions Support Grant (Closed)�Addendum�,Wholesale And Retail Trade; Repair Of Motor Vehicles And Motorcycles,23-Feb-21,LRSG_2142,Heaths,"1,334.00"
Barrow Borough Council,Local Restrictions Support Grant (Closed)�Addendum�,Accommodation And Food Service Activities,23-Feb-21,LRSG_2143,Valley View House Limited,"2,000.00"
Barrow Borough Council,Local Restrictions Support Grant (Closed)�Addendum�,Accommodation And Food Service Activities,23-Feb-21,LRSG_2144,Greene King Pub Co,"3,000.00"
Barrow Borough Council,Local Restrictions Support Grant (Closed)�Addendum�,Accommodation And Food Service Activities,23-Feb-21,LRSG_2145,Greene King Pub Co,"3,000.00"
Barrow Borough Council,Local Restrictions Support Grant (Closed)�Addendum�,Accommodation And Food Service Activities,23-Feb-21,LRSG_2146, Railway Inn,"1,334.00"
Barrow Borough Council,Local Restrictions Support Grant (Closed)�Addendum�,Wholesale And Retail Trade; Repair Of Motor Vehicles And Motorcycles,23-Feb-21,LRSG_2147,The Full Octave Ltd,"1,334.00"
Barrow Borough Council,Local Restrictions Support Grant (Open)�,"Arts, Entertainment And Recreation",23-Feb-21,LRSG_2148,ESCAPE ROOM (Barrow ltd),633.79
Barrow Borough Council,Local Restrictions Support Grant (Open)�,Accommodation And Food Service Activities,23-Feb-21,LRSG_2149, Railway Inn,633.79
Barrow Borough Council,Local Restrictions Support Grant (Open)�,"Arts, Entertainment And Recreation",23-Feb-21,LRSG_2150,Barrow ABC Brook St Gym,967.36
Barrow Borough Council,Local Restrictions Support Grant (Closed) Addendum: Tier 4,"Arts, Entertainment And Recreation",23-Feb-21,LRSG_2151,Barrow ABC Brook St Gym,238.21
Barrow Borough Council,Local Restrictions Support Grant (Closed) Addendum: 5 January onwards,"Arts, Entertainment And Recreation",23-Feb-21,LRSG_2152,Barrow ABC Brook St Gym,"2,001.00"
Barrow Borough Council,Local Restrictions Support Grant (Closed) Addendum: Tier 4,Accommodation And Food Service Activities,23-Feb-21,LRSG_2153,Trustees of Biggar bank Caravan Association T/A Salt Marsh Caravan Park,238.21
Barrow Borough Council,Local Restrictions Support Grant (Closed) Addendum: 5 January onwards,Accommodation And Food Service Activities,23-Feb-21,LRSG_2154,Trustees of Biggar bank Caravan Association T/A Salt Marsh Caravan Park,"2,001.00"
Barrow Borough Council,Local Restrictions Support Grant (Closed) Addendum: Tier 4,Wholesale And Retail Trade; Repair Of Motor Vehicles And Motorcycles,23-Feb-21,LRSG_2155,Sally Salon Services Ltd,357.14
Barrow Borough Council,Local Restrictions Support Grant (Closed) Addendum: 5 January onwards,Wholesale And Retail Trade; Repair Of Motor Vehicles And Motorcycles,23-Feb-21,LRSG_2156,Sally Salon Services Ltd,"3,000.00"
Barrow Borough Council,Local Restrictions Support Grant (Closed) Addendum: Tier 4,Wholesale And Retail Trade; Repair Of Motor Vehicles And Motorcycles,23-Feb-21,LRSG_2157,Business Grant Recipient,238.21
Barrow Borough Council,Local Restrictions Support Grant (Closed) Addendum: 5 January onwards,Wholesale And Retail Trade; Repair Of Motor Vehicles And Motorcycles,23-Feb-21,LRSG_2158,Business Grant Recipient,"2,001.00"
Barrow Borough Council,Local Restrictions Support Grant (Closed) Addendum: Tier 4,Accommodation And Food Service Activities,23-Feb-21,LRSG_2159,Business Grant Recipient,238.21
Barrow Borough Council,Local Restrictions Support Grant (Closed) Addendum: 5 January onwards,Accommodation And Food Service Activities,23-Feb-21,LRSG_2160,Business Grant Recipient,"2,001.00"
Barrow Borough Council,Local Restrictions Support Grant (Closed) Addendum: Tier 4,"Arts, Entertainment And Recreation",23-Feb-21,LRSG_2161,Dazzle for Children & Young People,238.21
Barrow Borough Council,Local Restrictions Support Grant (Closed) Addendum: 5 January onwards,"Arts, Entertainment And Recreation",23-Feb-21,LRSG_2162,Dazzle for Children & Young People,"2,001.00"
Barrow Borough Council,Local Restrictions Support Grant (Closed) Addendum: Tier 4,Wholesale And Retail Trade; Repair Of Motor Vehicles And Motorcycles,23-Feb-21,LRSG_2163,Game Retail Ltd,357.14
Barrow Borough Council,Local Restrictions Support Grant (Closed) Addendum: 5 January onwards,Wholesale And Retail Trade; Repair Of Motor Vehicles And Motorcycles,23-Feb-21,LRSG_2164,Game Retail Ltd,"3,000.00"
Barrow Borough Council,Local Restrictions Support Grant (Closed) Addendum: Tier 4,Wholesale And Retail Trade; Repair Of Motor Vehicles And Motorcycles,23-Feb-21,LRSG_2165,Hays Travel Ltd,238.21
Barrow Borough Council,Local Restrictions Support Grant (Closed) Addendum: 5 January onwards,Wholesale And Retail Trade; Repair Of Motor Vehicles And Motorcycles,23-Feb-21,LRSG_2166,Hays Travel Ltd,"2,001.00"
Barrow Borough Council,Local Restrictions Support Grant (Closed) Addendum: Tier 4,Wholesale And Retail Trade; Repair Of Motor Vehicles And Motorcycles,23-Feb-21,LRSG_2167,Pampered Pooch,238.21
Barrow Borough Council,Local Restrictions Support Grant (Closed) Addendum: 5 January onwards,Wholesale And Retail Trade; Repair Of Motor Vehicles And Motorcycles,23-Feb-21,LRSG_2168,Pampered Pooch,"2,001.00"
Barrow Borough Council,Local Restrictions Support Grant (Closed) Addendum: Tier 4,"Arts, Entertainment And Recreation",23-Feb-21,LRSG_2169,Barrow Golf Club,357.14
Barrow Borough Council,Local Restrictions Support Grant (Closed) Addendum: 5 January onwards,"Arts, Entertainment And Recreation",23-Feb-21,LRSG_2170,Barrow Golf Club,"3,000.00"
Barrow Borough Council,Local Restrictions Support Grant (Open)�,Accommodation And Food Service Activities,24-Feb-21,LRSG_2171,Greene King Pub Co,"2,175.00"
Barrow Borough Council,Local Restrictions Support Grant (Closed) Addendum: Tier 4,Accommodation And Food Service Activities,24-Feb-21,LRSG_2172,Greene King Pub Co,535.71
Barrow Borough Council,Local Restrictions Support Grant (Closed) Addendum: 5 January onwards,Accommodation And Food Service Activities,24-Feb-21,LRSG_2173,Greene King Pub Co,"4,500.00"
Barrow Borough Council,Local Restrictions Support Grant (Open)�,Accommodation And Food Service Activities,24-Feb-21,LRSG_2174,Greene King Pub Co,"2,175.00"
Barrow Borough Council,Local Restrictions Support Grant (Closed) Addendum: Tier 4,Accommodation And Food Service Activities,24-Feb-21,LRSG_2175,Greene King Pub Co,535.71
Barrow Borough Council,Local Restrictions Support Grant (Closed) Addendum: 5 January onwards,Accommodation And Food Service Activities,24-Feb-21,LRSG_2176,Greene King Pub Co,"4,500.00"
Barrow Borough Council,Local Restrictions Support Grant (Closed) Addendum: Tier 4,Wholesale And Retail Trade; Repair Of Motor Vehicles And Motorcycles,24-Feb-21,LRSG_2177,Bensons for beds Retail ltd,535.71
Barrow Borough Council,Local Restrictions Support Grant (Closed) Addendum: 5 January onwards,Wholesale And Retail Trade; Repair Of Motor Vehicles And Motorcycles,24-Feb-21,LRSG_2178,Bensons for beds Retail ltd,"4,500.00"
Barrow Borough Council,Local Restrictions Support Grant (Closed) Addendum: Tier 4,Accommodation And Food Service Activities,24-Feb-21,LRSG_2179,Nichas Thai kitchen,238.21
Barrow Borough Council,Local Restrictions Support Grant (Closed) Addendum: 5 January onwards,Accommodation And Food Service Activities,24-Feb-21,LRSG_2180,Nichas Thai kitchen,"2,001.00"
Barrow Borough Council,Local Restrictions Support Grant (Closed) Addendum: Tier 4,Wholesale And Retail Trade; Repair Of Motor Vehicles And Motorcycles,24-Feb-21,LRSG_2181,Cheeky Fun Ltd,238.21
Barrow Borough Council,Local Restrictions Support Grant (Closed) Addendum: 5 January onwards,Wholesale And Retail Trade; Repair Of Motor Vehicles And Motorcycles,24-Feb-21,LRSG_2182,Cheeky Fun Ltd,"2,001.00"
Barrow Borough Council,Local Restrictions Support Grant (Closed) Addendum: Tier 4,"Arts, Entertainment And Recreation",24-Feb-21,LRSG_2183,Kite School and Premises,238.21
Barrow Borough Council,Local Restrictions Support Grant (Closed) Addendum: 5 January onwards,"Arts, Entertainment And Recreation",24-Feb-21,LRSG_2184,Kite School and Premises,"2,001.00"
Barrow Borough Council,Local Restrictions Support Grant (Closed) Addendum: Tier 4,"Arts, Entertainment And Recreation",24-Feb-21,LRSG_2185,Furness Homeless Support group,238.21
Barrow Borough Council,Local Restrictions Support Grant (Closed) Addendum: 5 January onwards,"Arts, Entertainment And Recreation",24-Feb-21,LRSG_2186,Furness Homeless Support group,"2,001.00"
Barrow Borough Council,Local Restrictions Support Grant (Closed) Addendum: Tier 4,"Arts, Entertainment And Recreation",24-Feb-21,LRSG_2187,Furness Homeless Support group,238.21
Barrow Borough Council,Local Restrictions Support Grant (Closed) Addendum: 5 January onwards,"Arts, Entertainment And Recreation",24-Feb-21,LRSG_2188,Furness Homeless Support group,"2,001.00"
Barrow Borough Council,Local Restrictions Support Grant (Closed) Addendum: Tier 4,Wholesale And Retail Trade; Repair Of Motor Vehicles And Motorcycles,24-Feb-21,LRSG_2189,Business Grant Recipient,238.21
Barrow Borough Council,Local Restrictions Support Grant (Closed) Addendum: 5 January onwards,Wholesale And Retail Trade; Repair Of Motor Vehicles And Motorcycles,24-Feb-21,LRSG_2190,Business Grant Recipient,"2,001.00"
Barrow Borough Council,Local Restrictions Support Grant (Closed)�Addendum�,"Arts, Entertainment And Recreation",24-Feb-21,LRSG_2191,St Matthews Community Halls,"1,334.00"
Barrow Borough Council,Local Restrictions Support Grant (Closed)�Addendum�,Wholesale And Retail Trade; Repair Of Motor Vehicles And Motorcycles,24-Feb-21,LRSG_2192,Gents hairdressers,"1,334.00"
Barrow Borough Council,Local Restrictions Support Grant (Closed)�Addendum�,"Arts, Entertainment And Recreation",24-Feb-21,LRSG_2193,Schneider Road Community Hub,"1,334.00"
Barrow Borough Council,Local Restrictions Support Grant (Open)�,Wholesale And Retail Trade; Repair Of Motor Vehicles And Motorcycles,25-Feb-21,LRSG_2194,Maiquez Limited,950.00
Barrow Borough Council,Closed Business Lockdown Payment,"Arts, Entertainment And Recreation",25-Feb-21,LRSG_2195,Dalton RLFC,"4,000.00"
Barrow Borough Council,Closed Business Lockdown Payment,"Arts, Entertainment And Recreation",25-Feb-21,LRSG_2196,Dalton Girl Guide Association,"4,000.00"
Barrow Borough Council,Closed Business Lockdown Payment,Wholesale And Retail Trade; Repair Of Motor Vehicles And Motorcycles,25-Feb-21,LRSG_2197,Business Grant Recipient,"4,000.00"
Barrow Borough Council,Closed Business Lockdown Payment,Wholesale And Retail Trade; Repair Of Motor Vehicles And Motorcycles,25-Feb-21,LRSG_2198,Astra Print,"4,000.00"
Barrow Borough Council,Closed Business Lockdown Payment,"Arts, Entertainment And Recreation",25-Feb-21,LRSG_2199,Walney Park Crown Green Bowling Club,"4,000.00"
Barrow Borough Council,Closed Business Lockdown Payment,Wholesale And Retail Trade; Repair Of Motor Vehicles And Motorcycles,25-Feb-21,LRSG_2200,Furness Heating Components Ltd,"6,000.00"
Barrow Borough Council,Closed Business Lockdown Payment,"Arts, Entertainment And Recreation",25-Feb-21,LRSG_2201,Walney Community Trust,"4,000.00"
Barrow Borough Council,Closed Business Lockdown Payment,Wholesale And Retail Trade; Repair Of Motor Vehicles And Motorcycles,25-Feb-21,LRSG_2202,The Salon,"4,000.00"
Barrow Borough Council,Closed Business Lockdown Payment,Wholesale And Retail Trade; Repair Of Motor Vehicles And Motorcycles,25-Feb-21,LRSG_2203,D Stoker Group Ltd,"9,000.00"
Barrow Borough Council,Closed Business Lockdown Payment,"Arts, Entertainment And Recreation",25-Feb-21,LRSG_2204,King Alfred Bowling Club,"4,000.00"
Barrow Borough Council,Closed Business Lockdown Payment,Wholesale And Retail Trade; Repair Of Motor Vehicles And Motorcycles,25-Feb-21,LRSG_2205,The Sofa Group TSG Cumbria,"6,000.00"
Barrow Borough Council,Closed Business Lockdown Payment,Wholesale And Retail Trade; Repair Of Motor Vehicles And Motorcycles,25-Feb-21,LRSG_2206,Business Grant Recipient,"4,000.00"
Barrow Borough Council,Closed Business Lockdown Payment,"Arts, Entertainment And Recreation",25-Feb-21,LRSG_2207,Furness health studio ,"4,000.00"
Barrow Borough Council,Closed Business Lockdown Payment,Wholesale And Retail Trade; Repair Of Motor Vehicles And Motorcycles,25-Feb-21,LRSG_2208, Unicut ,"4,000.00"
Barrow Borough Council,Closed Business Lockdown Payment,Accommodation And Food Service Activities,25-Feb-21,LRSG_2209,Trustees of Biggar bank Caravan Association T/A Salt Marsh Caravan Park,"4,000.00"
Barrow Borough Council,Closed Business Lockdown Payment,Wholesale And Retail Trade; Repair Of Motor Vehicles And Motorcycles,25-Feb-21,LRSG_2210,Sally Salon Services Ltd,"6,000.00"
Barrow Borough Council,Closed Business Lockdown Payment,Wholesale And Retail Trade; Repair Of Motor Vehicles And Motorcycles,25-Feb-21,LRSG_2211,Business Grant Recipient,"4,000.00"
Barrow Borough Council,Closed Business Lockdown Payment,Accommodation And Food Service Activities,25-Feb-21,LRSG_2212,Business Grant Recipient,"4,000.00"
Barrow Borough Council,Closed Business Lockdown Payment,"Arts, Entertainment And Recreation",25-Feb-21,LRSG_2213,Dazzle for Children & Young People,"4,000.00"
Barrow Borough Council,Closed Business Lockdown Payment,Wholesale And Retail Trade; Repair Of Motor Vehicles And Motorcycles,25-Feb-21,LRSG_2214,Game Retail Ltd,"6,000.00"
Barrow Borough Council,Closed Business Lockdown Payment,Wholesale And Retail Trade; Repair Of Motor Vehicles And Motorcycles,25-Feb-21,LRSG_2215,Hays Travel Ltd,"4,000.00"
Barrow Borough Council,Closed Business Lockdown Payment,Wholesale And Retail Trade; Repair Of Motor Vehicles And Motorcycles,25-Feb-21,LRSG_2216,Pampered Pooch,"4,000.00"
Barrow Borough Council,Closed Business Lockdown Payment,"Arts, Entertainment And Recreation",25-Feb-21,LRSG_2217,Barrow Golf Club,"6,000.00"
Barrow Borough Council,Closed Business Lockdown Payment,Wholesale And Retail Trade; Repair Of Motor Vehicles And Motorcycles,25-Feb-21,LRSG_2218,Bensons for beds Retail ltd,"9,000.00"
Barrow Borough Council,Closed Business Lockdown Payment,Accommodation And Food Service Activities,25-Feb-21,LRSG_2219,Nichas Thai kitchen,"4,000.00"
Barrow Borough Council,Closed Business Lockdown Payment,Wholesale And Retail Trade; Repair Of Motor Vehicles And Motorcycles,25-Feb-21,LRSG_2220,Cheeky Fun Ltd,"4,000.00"
Barrow Borough Council,Closed Business Lockdown Payment,"Arts, Entertainment And Recreation",25-Feb-21,LRSG_2221,Kite School and Premises,"4,000.00"
Barrow Borough Council,Closed Business Lockdown Payment,"Arts, Entertainment And Recreation",25-Feb-21,LRSG_2222,Furness Homeless Support group,"4,000.00"
Barrow Borough Council,Closed Business Lockdown Payment,"Arts, Entertainment And Recreation",25-Feb-21,LRSG_2223,Furness Homeless Support group,"4,000.00"
Barrow Borough Council,Closed Business Lockdown Payment,Wholesale And Retail Trade; Repair Of Motor Vehicles And Motorcycles,25-Feb-21,LRSG_2224,Business Grant Recipient,"4,000.00"
Barrow Borough Council,Closed Business Lockdown Payment,Accommodation And Food Service Activities,25-Feb-21,LRSG_2225,Vantage Leisure LTD,"4,000.00"
Barrow Borough Council,Closed Business Lockdown Payment,Accommodation And Food Service Activities,25-Feb-21,LRSG_2226,Aquaflo proerty,"4,000.00"
Barrow Borough Council,Closed Business Lockdown Payment,"Arts, Entertainment And Recreation",25-Feb-21,LRSG_2227,Barrow ABC Brook St Gym,"4,000.00"
Barrow Borough Council,Closed Business Lockdown Payment,Accommodation And Food Service Activities,25-Feb-21,LRSG_2228,Greene King Pub Co,"9,000.00"
Barrow Borough Council,Closed Business Lockdown Payment,Accommodation And Food Service Activities,25-Feb-21,LRSG_2229,Greene King Pub Co,"9,000.00"
Barrow Borough Council,Local Restrictions Support Grant (Open)�,Wholesale And Retail Trade; Repair Of Motor Vehicles And Motorcycles,25-Feb-21,LRSG_2230,Maiquez Limited,"1,450.00"
Barrow Borough Council,Local Restrictions Support Grant (Closed) Addendum: Tier 4,Accommodation And Food Service Activities,25-Feb-21,LRSG_2231,Mitchells & Butlers ,535.71
Barrow Borough Council,Local Restrictions Support Grant (Closed) Addendum: 5 January onwards,Accommodation And Food Service Activities,25-Feb-21,LRSG_2232,Mitchells & Butlers ,"4,500.00"
Barrow Borough Council,Local Restrictions Support Grant (Closed) Addendum: Tier 4,Wholesale And Retail Trade; Repair Of Motor Vehicles And Motorcycles,25-Feb-21,LRSG_2233,Odette hairdressers,238.21
Barrow Borough Council,Local Restrictions Support Grant (Closed) Addendum: 5 January onwards,Wholesale And Retail Trade; Repair Of Motor Vehicles And Motorcycles,25-Feb-21,LRSG_2234, Odette hairdressers,"2,001.00"
Barrow Borough Council,Local Restrictions Support Grant (Closed) Addendum: Tier 4,Wholesale And Retail Trade; Repair Of Motor Vehicles And Motorcycles,25-Feb-21,LRSG_2235, Home Images,238.21
Barrow Borough Council,Local Restrictions Support Grant (Closed) Addendum: 5 January onwards,Wholesale And Retail Trade; Repair Of Motor Vehicles And Motorcycles,25-Feb-21,LRSG_2236, Home Images,"2,001.00"
